{"text_format":"1","workbook":"xlsx","n_sheets":5,"sheets":["入力用","控用","税務署用","都道府県用","市町村用"],"not_rendered":{"charts":0,"images":1,"macros":1,"external_links":0,"defined_names":5,"comments":0,"pivot_tables":0},"unopened":[],"bounds":{"document_bytes":16777216,"sheet_cells":100000,"rows_first":2000,"rows_last":500,"rows_between":2000,"halvings":0,"cell_chars":16384,"cell_head_chars":4096},"cells_cut":0,"cells_raw":0,"read":"whole","date_system":"1900"}

{"sheet":"入力用","index":0,"n_rows":245,"n_cols":175,"rows_kept":245,"cut":false,"hidden":false,"merged":[[50,108,54,125],[50,126,54,168],[65,73,69,174],[77,0,85,19],[80,73,85,156],[80,157,85,163],[82,20,85,36],[86,105,89,125],[86,126,89,168],[70,106,73,125],[70,169,73,173],[74,72,79,97],[50,169,54,173],[44,1,54,35],[55,105,58,125],[55,169,58,173],[59,80,64,90],[59,91,64,95],[59,96,64,111],[59,112,64,117],[60,38,119,43],[60,46,72,70],[62,20,65,36],[74,98,77,175],[24,3,32,70],[38,27,42,31],[38,32,42,36],[5,8,9,32],[5,37,9,61],[16,29,22,154],[25,72,28,75],[25,149,28,152],[26,93,32,114],[26,124,32,127],[26,137,32,147],[38,22,42,26],[38,1,42,6],[38,7,42,11],[38,12,42,16],[38,17,42,21],[34,72,39,79],[34,80,39,90],[34,91,39,95],[34,96,39,111],[34,112,39,117],[35,38,57,70],[57,0,65,19],[59,72,64,79],[75,46,88,70],[86,169,89,173],[94,137,103,142],[94,145,103,150],[94,153,103,158],[94,161,103,166],[94,169,103,174],[97,0,105,19],[102,20,105,36],[90,81,93,174],[91,46,103,70],[94,73,103,78],[94,81,103,86],[94,89,103,94],[94,97,103,102],[94,105,103,110],[94,113,103,118],[94,121,103,126],[94,129,103,134],[136,144,143,174],[140,113,143,141],[141,70,146,80],[144,83,147,110],[144,113,147,140],[144,144,147,174],[106,46,119,70],[106,73,119,156],[110,157,115,163],[122,1,126,174],[128,1,132,174],[135,1,146,35],[135,38,146,67],[135,70,140,80],[136,83,143,110],[136,113,139,141],[107,3,118,33],[148,37,150,39],[148,82,150,111],[148,112,150,141],[148,143,150,174],[149,1,160,35],[151,38,160,65],[151,66,153,68],[151,70,160,80],[151,83,160,108],[151,109,153,111],[151,173,153,175],[179,140,181,142],[179,145,189,172],[179,173,181,175],[163,1,174,35],[163,38,174,67],[163,70,168,80],[164,83,171,110],[164,113,171,141],[164,144,171,174],[169,70,174,80],[172,83,175,110],[172,113,175,141],[172,144,175,174],[194,173,196,175],[207,1,233,15],[207,18,210,120],[207,123,210,174],[212,18,215,22],[212,38,215,40],[212,41,215,57],[212,101,215,105],[213,123,222,174],[218,18,222,120],[224,18,227,22],[224,38,227,40],[224,41,227,57],[224,101,227,105],[225,123,233,174],[230,18,233,120],[224,23,227,28],[177,1,204,35],[177,70,189,80],[179,38,204,65],[179,66,181,68],[179,83,189,108],[179,109,181,111],[192,70,204,80],[235,84,239,121],[236,1,240,73],[236,77,240,81],[240,85,246,128],[243,1,247,73],[243,77,247,81],[244,130,247,133],[264,146,268,172],[244,135,248,147],[244,166,248,173],[244,164,248,165],[244,156,248,163],[244,154,248,155],[244,148,248,153],[273,54,275,59],[274,69,277,136],[277,50,278,51],[263,55,266,58],[263,122,266,125],[264,1,268,53],[264,59,268,110],[264,113,268,120],[277,173,281,175],[278,69,281,136],[277,164,281,166],[277,167,281,169],[277,170,281,172],[282,0,285,74],[26,117,29,123],[30,117,32,123],[26,128,29,134],[30,128,32,134],[277,155,281,157],[277,158,281,160],[277,161,281,163],[277,54,279,59],[277,140,281,142],[277,143,281,145],[277,146,281,148],[277,149,281,151],[277,152,281,154],[270,17,273,20],[270,45,273,48],[270,61,273,64],[270,67,273,77],[41,73,49,174],[55,126,58,134],[55,135,58,137],[55,138,58,151],[55,152,58,154],[55,155,58,168],[70,126,73,134],[70,135,73,137],[70,138,73,151],[70,152,73,154],[70,155,73,168],[212,23,215,28],[212,29,215,30],[212,31,215,37],[191,82,193,111],[191,112,193,141],[191,143,193,172],[194,83,204,108],[194,109,196,111],[194,114,204,139],[194,140,196,142],[194,145,204,172],[176,37,178,39],[176,82,178,111],[176,112,178,141],[176,143,178,172],[151,114,160,139],[151,140,153,142],[151,145,160,172],[179,114,189,139],[63,177,281,184],[224,29,227,30],[224,31,227,37],[212,58,215,66],[212,67,215,69],[212,70,215,83],[212,84,215,86],[212,87,215,100],[224,58,227,66],[224,67,227,69],[224,70,227,83],[224,84,227,86],[224,87,227,100],[244,174,248,175],[250,1,254,174],[256,55,259,58],[256,122,259,125],[257,1,261,53],[257,59,261,110],[257,113,261,120],[257,146,261,172],[270,140,273,143],[271,1,280,15],[271,30,280,43]]}
[]
[]
[]
[]
[]
[null,null,null,null,null,null,null,null,"必ず入力",null,null,null,null,null,null,null,null,null,null,null,null,null,null,null,null,null,null,null,null,null,null,null,null,null,null,null,null,"該当の場合のみ入力"]
[]
[]
[]
[]
[]
[]
[]
[]
[]
[]
[null,null,null,null,null,null,null,null,null,null,null,null,null,null,null,null,null,null,null,null,null,null,null,null,null,null,null,null,null,"たばこ税等の手持品課税納税申告書　入力フォーム"]
[]
[]
[]
[]
[]
[]
[]
[null,null,null,"※マクロを有効にしてください。"]
[null,null,null,null,null,null,null,null,null,null,null,null,null,null,null,null,null,null,null,null,null,null,null,null,null,null,null,null,null,null,null,null,null,null,null,null,null,null,null,null,null,null,null,null,null,null,null,null,null,null,null,null,null,null,null,null,null,null,null,null,null,null,null,null,null,null,null,null,null,null,null,null,"※",null,null,null,null,null,null,null,null,null,null,null,null,null,null,null,null,null,null,null,null,null,null,null,null,null,null,null,null,null,null,null,null,null,null,null,null,null,null,null,null,null,null,null,null,null,null,null,null,null,null,null,null,null,null,null,null,null,null,null,null,null,null,null,null,null,null,null,null,null,null,null,null,null,null,null,null,"※"]
[null,null,null,null,null,null,null,null,null,null,null,null,null,null,null,null,null,null,null,null,null,null,null,null,null,null,null,null,null,null,null,null,null,null,null,null,null,null,null,null,null,null,null,null,null,null,null,null,null,null,null,null,null,null,null,null,null,null,null,null,null,null,null,null,null,null,null,null,null,null,null,null,null,null,null,null,null,null,null,null,null,null,null,null,null,null,null,null,null,null,null,null,null,"申告者の種別",null,null,null,null,null,null,null,null,null,null,null,null,null,null,null,null,null,null,null,null,null,null,null,"小",null,null,null,null,null,null,"・",null,null,null,"卸",null,null,null,null,null,null,null,null,"整理番号"]
[]
[]
[]
[]
[]
[]
[]
[null,null,null,null,null,null,null,null,null,null,null,null,null,null,null,null,null,null,null,null,null,null,null,null,null,null,null,null,null,null,null,null,null,null,null,null,null,null,null,null,null,null,null,null,null,null,null,null,null,null,null,null,null,null,null,null,null,null,null,null,null,null,null,null,null,null,null,null,null,null,null,null,"（〒",null,null,null,null,null,null,null,null,null,null,null,null,null,null,null,null,null,null,"-",null,null,null,null,null,null,null,null,null,null,null,null,null,null,null,null,null,null,null,null,")"]
[null,null,null,null,null,null,null,null,null,null,null,null,null,null,null,null,null,null,null,null,null,null,null,null,null,null,null,null,null,null,null,null,null,null,null,null,null,null,"営業所又は貯蔵場所\nの所在地及び名称"]
[]
[]
[null,"令和",null,null,null,null,null,null,null,null,null,null,"年",null,null,null,null,null,null,null,null,null,"月",null,null,null,null,null,null,null,null,null,"日"]
[]
[]
[]
[]
[]
[]
[]
[]
[]
[]
[]
[null,null,null,null,null,null,null,null,null,null,null,null,null,null,null,null,null,null,null,null,null,null,null,null,null,null,null,null,null,null,null,null,null,null,null,null,null,null,null,null,null,null,null,null,null,null,null,null,null,null,null,null,null,null,null,null,null,null,null,null,null,null,null,null,null,null,null,null,null,null,null,null,null,null,null,null,null,null,null,null,null,null,null,null,null,null,null,null,null,null,null,null,null,null,null,null,null,null,null,null,null,null,null,null,null,null,null,null,"店舗名（",null,null,null,null,null,null,null,null,null,null,null,null,null,null,null,null,null,null,null,null,null,null,null,null,null,null,null,null,null,null,null,null,null,null,null,null,null,null,null,null,null,null,null,null,null,null,null,null,null,null,null,null,null,null,null,null,null,null,null,null,"）"]
[]
[]
[]
[]
[null,null,null,null,null,null,null,null,null,null,null,null,null,null,null,null,null,null,null,null,null,null,null,null,null,null,null,null,null,null,null,null,null,null,null,null,null,null,null,null,null,null,null,null,null,null,null,null,null,null,null,null,null,null,null,null,null,null,null,null,null,null,null,null,null,null,null,null,null,null,null,null,null,null,null,null,null,null,null,null,null,null,null,null,null,null,null,null,null,null,null,null,null,null,null,null,null,null,null,null,null,null,null,null,null,"（電話番号",null,null,null,null,null,null,null,null,null,null,null,null,null,null,null,null,null,null,null,null,null,null,null,null,null,null,null,null,null,"-",null,null,null,null,null,null,null,null,null,null,null,null,null,null,null,null,"-",null,null,null,null,null,null,null,null,null,null,null,null,null,null,null,null,"）"]
[]
[]
[]
[null,null,null,null,null,null,null,null,null,null,null,null,null,null,null,null,null,null,null,null,null,null,null,null,null,null,null,null,null,null,null,null,null,null,null,null,null,null,null,null,null,null,null,null,null,null,null,null,null,null,null,null,null,null,null,null,null,null,null,null,null,null,null,null,null,null,null,null,null,null,null,null,"（〒",null,null,null,null,null,null,null,null,null,null,null,null,null,null,null,null,null,null,"-",null,null,null,null,null,null,null,null,null,null,null,null,null,null,null,null,null,null,null,null,")"]
[null,null,null,null,null,null,null,null,null,null,null,null,null,null,null,null,null,null,null,null,null,null,null,null,null,null,null,null,null,null,null,null,null,null,null,null,null,null,"申　　告　　者",null,null,null,null,null,null,null,"住所"]
[]
[null,null,null,null,null,null,null,null,null,null,null,null,null,null,null,null,null,null,null,null,"税務署長殿"]
[]
[]
[]
[]
[]
[]
[]
[null,null,null,null,null,null,null,null,null,null,null,null,null,null,null,null,null,null,null,null,null,null,null,null,null,null,null,null,null,null,null,null,null,null,null,null,null,null,null,null,null,null,null,null,null,null,null,null,null,null,null,null,null,null,null,null,null,null,null,null,null,null,null,null,null,null,null,null,null,null,null,null,null,null,null,null,null,null,null,null,null,null,null,null,null,null,null,null,null,null,null,null,null,null,null,null,null,null,null,null,null,null,null,null,null,null,"（電話番号",null,null,null,null,null,null,null,null,null,null,null,null,null,null,null,null,null,null,null,null,null,null,null,null,null,null,null,null,"-",null,null,null,null,null,null,null,null,null,null,null,null,null,null,null,null,"-",null,null,null,null,null,null,null,null,null,null,null,null,null,null,null,null,"）"]
[]
[]
[]
[null,null,null,null,null,null,null,null,null,null,null,null,null,null,null,null,null,null,null,null,null,null,null,null,null,null,null,null,null,null,null,null,null,null,null,null,null,null,null,null,null,null,null,null,null,null,null,null,null,null,null,null,null,null,null,null,null,null,null,null,null,null,null,null,null,null,null,null,null,null,null,null,"（フリガナ）"]
[null,null,null,null,null,null,null,null,null,null,null,null,null,null,null,null,null,null,null,null,null,null,null,null,null,null,null,null,null,null,null,null,null,null,null,null,null,null,null,null,null,null,null,null,null,null,"氏名又は名称\n及び代表者氏名"]
[]
[]
[]
[]
[null,null,null,null,null,null,null,null,null,null,null,null,null,null,null,null,null,null,null,null,null,null,null,null,null,null,null,null,null,null,null,null,null,null,null,null,null,null,null,null,null,null,null,null,null,null,null,null,null,null,null,null,null,null,null,null,null,null,null,null,null,null,null,null,null,null,null,null,null,null,null,null,null,null,null,null,null,null,null,null,null,null,null,null,null,null,null,null,null,null,null,null,null,null,null,null,null,null,null,null,null,null,null,null,null,null,null,null,null,null,null,null,null,null,null,null,null,null,null,null,null,null,null,null,null,null,null,null,null,null,null,null,null,null,null,null,null,null,null,null,null,null,null,null,null,null,null,null,null,null,null,null,null,null,null,null,null,"㊞"]
[]
[null,null,null,null,null,null,null,null,null,null,null,null,null,null,null,null,null,null,null,null,"知事殿"]
[]
[]
[]
[]
[]
[]
[]
[null,null,null,null,null,null,null,null,null,null,null,null,null,null,null,null,null,null,null,null,null,null,null,null,null,null,null,null,null,null,null,null,null,null,null,null,null,null,null,null,null,null,null,null,null,null,null,null,null,null,null,null,null,null,null,null,null,null,null,null,null,null,null,null,null,null,null,null,null,null,null,null,null,null,null,null,null,null,null,null,null," ↓個人番号の記載に当たっては、左端を空欄とし、ここから記載してください。"]
[null,null,null,null,null,null,null,null,null,null,null,null,null,null,null,null,null,null,null,null,null,null,null,null,null,null,null,null,null,null,null,null,null,null,null,null,null,null,null,null,null,null,null,null,null,null,"個人番号又は\n法人番号"]
[]
[]
[]
[]
[]
[]
[]
[]
[]
[]
[null,null,null,null,null,null,null,null,null,null,null,null,null,null,null,null,null,null,null,null,"市町村長殿"]
[]
[]
[]
[null,null,null,null,null,null,null,null,null,null,null,null,null,null,null,null,null,null,null,null,null,null,null,null,null,null,null,null,null,null,null,null,null,null,null,null,null,null,null,null,null,null,null,null,null,null,"同上代理人"]
[null,null,null,"※東京特別区の場合、\n「新宿区」のように記載してください。"]
[]
[]
[null,null,null,null,null,null,null,null,null,null,null,null,null,null,null,null,null,null,null,null,null,null,null,null,null,null,null,null,null,null,null,null,null,null,null,null,null,null,null,null,null,null,null,null,null,null,null,null,null,null,null,null,null,null,null,null,null,null,null,null,null,null,null,null,null,null,null,null,null,null,null,null,null,null,null,null,null,null,null,null,null,null,null,null,null,null,null,null,null,null,null,null,null,null,null,null,null,null,null,null,null,null,null,null,null,null,null,null,null,null,null,null,null,null,null,null,null,null,null,null,null,null,null,null,null,null,null,null,null,null,null,null,null,null,null,null,null,null,null,null,null,null,null,null,null,null,null,null,null,null,null,null,null,null,null,null,null,"㊞"]
[]
[]
[]
[]
[]
[]
[]
[]
[]
[]
[]
[null,"提　出　す　る　申　告　書　の　種　類　を　以　下　か　ら　選　択　し　て　く　だ　さ　い　。"]
[]
[]
[]
[]
[]
[]
[]
[]
[]
[]
[]
[]
[null,"区　　　分",null,null,null,null,null,null,null,null,null,null,null,null,null,null,null,null,null,null,null,null,null,null,null,null,null,null,null,null,null,null,null,null,null,null,null,null,"所持する紙巻\nたばこ三級品の数量",null,null,null,null,null,null,null,null,null,null,null,null,null,null,null,null,null,null,null,null,null,null,null,null,null,null,null,null,null,null,null,"１本当た",null,null,null,null,null,null,null,null,null,null,null,null,"税額\n"]
[null,null,null,null,null,null,null,null,null,null,null,null,null,null,null,null,null,null,null,null,null,null,null,null,null,null,null,null,null,null,null,null,null,null,null,null,null,null,null,null,null,null,null,null,null,null,null,null,null,null,null,null,null,null,null,null,null,null,null,null,null,null,null,null,null,null,null,null,null,null,null,null,null,null,null,null,null,null,null,null,null,null,null,"税　　　額",null,null,null,null,null,null,null,null,null,null,null,null,null,null,null,null,null,null,null,null,null,null,null,null,null,null,null,null,null,"修正申告の場合の",null,null,null,null,null,null,null,null,null,null,null,null,null,null,null,null,null,null,null,null,null,null,null,null,null,null,null,null,null,null,"納付すべき税額"]
[]
[]
[]
[null,null,null,null,null,null,null,null,null,null,null,null,null,null,null,null,null,null,null,null,null,null,null,null,null,null,null,null,null,null,null,null,null,null,null,null,null,null,null,null,null,null,null,null,null,null,null,null,null,null,null,null,null,null,null,null,null,null,null,null,null,null,null,null,null,null,null,null,null,null,null,null,null,null,null,null,null,null,null,null,null,null,null,null,null,null,null,null,null,null,null,null,null,null,null,null,null,null,null,null,null,null,null,null,null,null,null,null,null,null,null,null,null,"修正申告前の確定額"]
[null,null,null,null,null,null,null,null,null,null,null,null,null,null,null,null,null,null,null,null,null,null,null,null,null,null,null,null,null,null,null,null,null,null,null,null,null,null,null,null,null,null,null,null,null,null,null,null,null,null,null,null,null,null,null,null,null,null,null,null,null,null,null,null,null,null,null,null,null,null,"りの税率"]
[]
[]
[null,null,null,null,null,null,null,null,null,null,null,null,null,null,null,null,null,null,null,null,null,null,null,null,null,null,null,null,null,null,null,null,null,null,null,null,null,null,null,null,null,null,null,null,null,null,null,null,null,null,null,null,null,null,null,null,null,null,null,null,null,null,null,null,null,null,null,null,null,null,null,null,null,null,null,null,null,null,null,null,null,null,null,"(100円未満切捨て)",null,null,null,null,null,null,null,null,null,null,null,null,null,null,null,null,null,null,null,null,null,null,null,null,null,null,null,null,null,"(100円単位で記入)",null,null,null,null,null,null,null,null,null,null,null,null,null,null,null,null,null,null,null,null,null,null,null,null,null,null,null,null,null,null,"(100円単位で記入)"]
[]
[]
[]
[null,null,null,null,null,null,null,null,null,null,null,null,null,null,null,null,null,null,null,null,null,null,null,null,null,null,null,null,null,null,null,null,null,null,null,null,null,"①",null,null,null,null,null,null,null,null,null,null,null,null,null,null,null,null,null,null,null,null,null,null,null,null,null,null,null,null,null,null,null,null,null,null,null,null,null,null,null,null,null,null,null,null,{"$f":"\"②（①×\"&BS152 &\"）\"","v":"②（①×1.966）"},null,null,null,null,null,null,null,null,null,null,null,null,null,null,null,null,null,null,null,null,null,null,null,null,null,null,null,null,null,"③",null,null,null,null,null,null,null,null,null,null,null,null,null,null,null,null,null,null,null,null,null,null,null,null,null,null,null,null,null,null,"④（②又は②－③）"]
[null,"たばこ税及び\nたばこ特別税"]
[]
[null,null,null,null,null,null,null,null,null,null,null,null,null,null,null,null,null,null,null,null,null,null,null,null,null,null,null,null,null,null,null,null,null,null,null,null,null,null,null,null,null,null,null,null,null,null,null,null,null,null,null,null,null,null,null,null,null,null,null,null,null,null,null,null,null,null,"本",null,null,null,1.966,null,null,null,null,null,null,null,null,null,null,null,null,{"$f":"IF(AM152=\"\",\"00\",ROUNDDOWN(AM152*BS152,-2))","v":"00"},null,null,null,null,null,null,null,null,null,null,null,null,null,null,null,null,null,null,null,null,null,null,null,null,null,"円",null,null,null,null,0,null,null,null,null,null,null,null,null,null,null,null,null,null,null,null,null,null,null,null,null,null,null,null,null,null,"円",null,null,null,null,{"$f":"IF(AM152=\"\",\"00\",CF152-DK152)","v":"00"},null,null,null,null,null,null,null,null,null,null,null,null,null,null,null,null,null,null,null,null,null,null,null,null,null,null,null,"円"]
[]
[]
[]
[]
[]
[]
[]
[]
[]
[]
[]
[null,"区　　　分",null,null,null,null,null,null,null,null,null,null,null,null,null,null,null,null,null,null,null,null,null,null,null,null,null,null,null,null,null,null,null,null,null,null,null,null,"課税標準となる紙巻\nたばこ三級品の本数",null,null,null,null,null,null,null,null,null,null,null,null,null,null,null,null,null,null,null,null,null,null,null,null,null,null,null,null,null,null,null,"１本当た"]
[null,null,null,null,null,null,null,null,null,null,null,null,null,null,null,null,null,null,null,null,null,null,null,null,null,null,null,null,null,null,null,null,null,null,null,null,null,null,null,null,null,null,null,null,null,null,null,null,null,null,null,null,null,null,null,null,null,null,null,null,null,null,null,null,null,null,null,null,null,null,null,null,null,null,null,null,null,null,null,null,null,null,null,"税　　　額",null,null,null,null,null,null,null,null,null,null,null,null,null,null,null,null,null,null,null,null,null,null,null,null,null,null,null,null,null,"修正申告の場合の\n修正申告前の確定額",null,null,null,null,null,null,null,null,null,null,null,null,null,null,null,null,null,null,null,null,null,null,null,null,null,null,null,null,null,null,"納付すべき税額"]
[]
[]
[]
[]
[null,null,null,null,null,null,null,null,null,null,null,null,null,null,null,null,null,null,null,null,null,null,null,null,null,null,null,null,null,null,null,null,null,null,null,null,null,null,null,null,null,null,null,null,null,null,null,null,null,null,null,null,null,null,null,null,null,null,null,null,null,null,null,null,null,null,null,null,null,null,"りの税率"]
[]
[]
[null,null,null,null,null,null,null,null,null,null,null,null,null,null,null,null,null,null,null,null,null,null,null,null,null,null,null,null,null,null,null,null,null,null,null,null,null,null,null,null,null,null,null,null,null,null,null,null,null,null,null,null,null,null,null,null,null,null,null,null,null,null,null,null,null,null,null,null,null,null,null,null,null,null,null,null,null,null,null,null,null,null,null,"(1円未満切捨て)",null,null,null,null,null,null,null,null,null,null,null,null,null,null,null,null,null,null,null,null,null,null,null,null,null,null,null,null,null,"(1円単位で記入)",null,null,null,null,null,null,null,null,null,null,null,null,null,null,null,null,null,null,null,null,null,null,null,null,null,null,null,null,null,null,"(1円単位で記入)"]
[]
[]
[]
[null,null,null,null,null,null,null,null,null,null,null,null,null,null,null,null,null,null,null,null,null,null,null,null,null,null,null,null,null,null,null,null,null,null,null,null,null,"⑤",null,null,null,null,null,null,null,null,null,null,null,null,null,null,null,null,null,null,null,null,null,null,null,null,null,null,null,null,null,null,null,null,null,null,null,null,null,null,null,null,null,null,null,null,{"$f":"\"⑥（⑤×\"&BS178 &\"）\"","v":"⑥（⑤×0.274）"},null,null,null,null,null,null,null,null,null,null,null,null,null,null,null,null,null,null,null,null,null,null,null,null,null,null,null,null,null,"⑦",null,null,null,null,null,null,null,null,null,null,null,null,null,null,null,null,null,null,null,null,null,null,null,null,null,null,null,null,null,null,"⑧（⑥又は⑥－⑦）"]
[null,"道府県税",null,null,null,null,null,null,null,null,null,null,null,null,null,null,null,null,null,null,null,null,null,null,null,null,null,null,null,null,null,null,null,null,null,null,null,null,null,null,null,null,null,null,null,null,null,null,null,null,null,null,null,null,null,null,null,null,null,null,null,null,null,null,null,null,null,null,null,null,0.27400000000000002]
[]
[null,null,null,null,null,null,null,null,null,null,null,null,null,null,null,null,null,null,null,null,null,null,null,null,null,null,null,null,null,null,null,null,null,null,null,null,null,null,null,null,null,null,null,null,null,null,null,null,null,null,null,null,null,null,null,null,null,null,null,null,null,null,null,null,null,null,"本",null,null,null,null,null,null,null,null,null,null,null,null,null,null,null,null,{"$f":"IF(AM180=\"\",\"\",ROUNDDOWN(AM180*BS178,0))","v":""},null,null,null,null,null,null,null,null,null,null,null,null,null,null,null,null,null,null,null,null,null,null,null,null,null,"円",null,null,null,null,0,null,null,null,null,null,null,null,null,null,null,null,null,null,null,null,null,null,null,null,null,null,null,null,null,null,"円",null,null,null,null,{"$f":"IF(AM180=\"\",\"\",CF180-DK180)","v":""},null,null,null,null,null,null,null,null,null,null,null,null,null,null,null,null,null,null,null,null,null,null,null,null,null,null,null,"円"]
[]
[]
[]
[]
[]
[]
[]
[]
[]
[]
[]
[null,null,null,null,null,null,null,null,null,null,null,null,null,null,null,null,null,null,null,null,null,null,null,null,null,null,null,null,null,null,null,null,null,null,null,null,null,null,null,null,null,null,null,null,null,null,null,null,null,null,null,null,null,null,null,null,null,null,null,null,null,null,null,null,null,null,null,null,null,null,null,null,null,null,null,null,null,null,null,null,null,null,{"$f":"\"⑨（⑤×\"&BS193 &\"）\"","v":"⑨（⑤×1.692）"},null,null,null,null,null,null,null,null,null,null,null,null,null,null,null,null,null,null,null,null,null,null,null,null,null,null,null,null,null,"⑩",null,null,null,null,null,null,null,null,null,null,null,null,null,null,null,null,null,null,null,null,null,null,null,null,null,null,null,null,null,null,"⑪（⑨又は⑨－⑩）"]
[null,null,null,null,null,null,null,null,null,null,null,null,null,null,null,null,null,null,null,null,null,null,null,null,null,null,null,null,null,null,null,null,null,null,null,null,null,null,null,null,null,null,null,null,null,null,null,null,null,null,null,null,null,null,null,null,null,null,null,null,null,null,null,null,null,null,null,null,null,null,1.6919999999999999]
[]
[null,null,null,null,null,null,null,null,null,null,null,null,null,null,null,null,null,null,null,null,null,null,null,null,null,null,null,null,null,null,null,null,null,null,null,null,null,null,null,null,null,null,null,null,null,null,null,null,null,null,null,null,null,null,null,null,null,null,null,null,null,null,null,null,null,null,null,null,null,null,null,null,null,null,null,null,null,null,null,null,null,null,null,{"$f":"IF(AM180=\"\",\"\",ROUNDDOWN(AM180*BS193,0))","v":""},null,null,null,null,null,null,null,null,null,null,null,null,null,null,null,null,null,null,null,null,null,null,null,null,null,"円",null,null,null,null,0,null,null,null,null,null,null,null,null,null,null,null,null,null,null,null,null,null,null,null,null,null,null,null,null,null,"円",null,null,null,null,{"$f":"IF(AM180=\"\",\"\",CF195-DK195)","v":""},null,null,null,null,null,null,null,null,null,null,null,null,null,null,null,null,null,null,null,null,null,null,null,null,null,null,null,"円"]
[]
[]
[]
[]
[]
[]
[]
[]
[]
[]
[null,null,null,null,null,null,null,null,null,null,null,null,null,null,null,null,null,null,null,null,null,null,null,null,null,null,null,null,null,null,null,null,null,null,null,null,null,null,null,null,null,null,0]
[]
[null,"出張販売\n先、自動\n販売機等\nの所在地\n及び名称",null,null,null,null,null,null,null,null,null,null,null,null,null,null,null,null,"所　　在　　地",null,null,null,null,null,null,null,null,null,null,null,null,null,null,null,null,null,null,null,null,null,null,null,null,null,null,null,null,null,null,null,null,null,null,null,null,null,null,null,null,null,null,null,null,null,null,null,null,null,null,null,null,null,null,null,null,null,null,null,null,null,null,null,null,null,null,null,null,null,null,null,null,null,null,null,null,null,null,null,null,null,null,null,null,null,null,null,null,null,null,null,null,null,null,null,null,null,null,null,null,null,null,null,null,"名　　称"]
[]
[]
[]
[]
[null,null,null,null,null,null,null,null,null,null,null,null,null,null,null,null,null,null,"（〒",null,null,null,null,null,null,null,null,null,null,"-",null,null,null,null,null,null,null,null,"）",null,null,"（電話番号",null,null,null,null,null,null,null,null,null,null,null,null,null,null,null,null,null,null,null,null,null,null,null,null,null,"-",null,null,null,null,null,null,null,null,null,null,null,null,null,null,null,null,"-",null,null,null,null,null,null,null,null,null,null,null,null,null,null,null,null,"）"]
[]
[]
[]
[]
[]
[]
[]
[]
[]
[]
[]
[null,null,null,null,null,null,null,null,null,null,null,null,null,null,null,null,null,null,"（〒",null,null,null,null,null,null,null,null,null,null,"-",null,null,null,null,null,null,null,null,"）",null,null,"（電話番号",null,null,null,null,null,null,null,null,null,null,null,null,null,null,null,null,null,null,null,null,null,null,null,null,null,"-",null,null,null,null,null,null,null,null,null,null,null,null,null,null,null,null,"-",null,null,null,null,null,null,null,null,null,null,null,null,null,null,null,null,"）"]
[]
[]
[]
[]
[]
[]
[]
[]
[]
[]
[null,null,null,null,null,null,null,null,null,null,null,null,null,null,null,null,null,null,null,null,null,null,null,null,null,null,null,null,null,null,null,null,null,null,null,null,null,null,null,null,null,null,null,null,null,null,null,null,null,null,null,null,null,null,null,null,null,null,null,null,null,null,null,null,null,null,null,null,null,null,null,null,null,null,null,null,null,null,null,null,null,null,null,null,"作成税理士署名・押印"]
[null,"税理士法第30条の書面提出"]
[]
[]
[]
[null,null,null,null,null,null,null,null,null,null,null,null,null,null,null,null,null,null,null,null,null,null,null,null,null,null,null,null,null,null,null,null,null,null,null,null,null,null,null,null,null,null,null,null,null,null,null,null,null,null,null,null,null,null,null,null,null,null,null,null,null,null,null,null,null,null,null,null,null,null,null,null,null,null,null,null,null,null,null,null,null,null,null,null,null,"記載不要"]
[]
[]
[null,"税理士法第33条の2の書面提出"]
[null,null,null,null,null,null,null,null,null,null,null,null,null,null,null,null,null,null,null,null,null,null,null,null,null,null,null,null,null,null,null,null,null,null,null,null,null,null,null,null,null,null,null,null,null,null,null,null,null,null,null,null,null,null,null,null,null,null,null,null,null,null,null,null,null,null,null,null,null,null,null,null,null,null,null,null,null,null,null,null,null,null,null,null,null,null,null,null,null,null,null,null,null,null,null,null,null,null,null,null,null,null,null,null,null,null,null,null,null,null,null,null,null,null,null,null,null,null,null,null,null,null,null,null,null,null,null,null,null,null,"㊞",null,null,null,null,"（電話番号",null,null,null,null,null,null,null,null,null,null,null,null,null,null,null,null,null,null,"-",null,null,null,null,null,null,null,null,null,"-",null,null,null,null,null,null,null,null,null,"）"]

{"sheet":"控用","index":1,"n_rows":271,"n_cols":203,"rows_kept":271,"cut":false,"hidden":false,"merged":[[63,177,281,184],[92,73,103,174],[270,0,291,175],[244,135,248,147],[244,174,248,175],[224,101,227,105],[225,123,233,174],[230,18,233,120],[235,84,239,121],[236,1,240,73],[236,77,240,81],[240,85,246,128],[243,1,247,73],[243,77,247,81],[244,130,247,133],[194,145,204,172],[176,37,178,39],[253,7,256,175],[257,10,260,95],[207,1,233,15],[207,18,210,120],[207,123,210,174],[212,18,215,22],[212,38,215,40],[29,150,32,174],[249,0,252,6],[249,7,252,175],[179,145,189,172],[179,173,181,175],[141,70,146,80],[144,83,147,110],[144,113,147,140],[144,144,147,174],[191,82,193,111],[163,1,174,35],[163,38,174,67],[163,70,168,80],[164,83,171,110],[164,113,171,141],[164,144,171,174],[172,144,175,174],[38,1,42,6],[38,7,42,11],[38,12,42,16],[38,17,42,21],[38,22,42,26],[38,27,42,31],[38,32,42,36],[213,123,222,174],[218,18,222,120],[224,18,227,22],[224,38,227,40],[224,41,227,57],[212,84,215,86],[212,87,215,100],[224,84,227,86],[224,87,227,100],[176,143,178,172],[194,173,196,175],[192,70,204,80],[194,83,204,108],[194,109,196,111],[194,114,204,139],[194,140,196,142],[151,145,160,172],[151,173,153,175],[179,83,189,108],[179,109,181,111],[179,114,189,139],[179,140,181,142],[169,70,174,80],[172,83,175,110],[172,113,175,141],[151,114,160,139],[151,140,153,142],[176,82,178,111],[176,112,178,141],[191,112,193,141],[191,143,193,172],[177,70,189,80],[148,112,150,141],[148,143,150,174],[149,1,160,35],[151,38,160,65],[151,66,153,68],[151,70,160,80],[151,83,160,108],[151,109,153,111],[106,46,119,70],[106,73,119,156],[110,157,115,163],[122,1,126,174],[128,1,132,174],[135,1,146,35],[135,38,146,67],[135,70,140,80],[136,83,143,110],[140,113,143,141],[136,144,143,174],[50,169,54,173],[55,105,58,125],[55,169,58,173],[29,7,32,19],[34,72,39,79],[34,80,39,90],[34,91,39,95],[34,96,39,111],[34,112,39,117],[35,38,57,70],[41,73,49,174],[55,126,58,134],[55,135,58,137],[55,138,58,151],[55,152,58,154],[55,155,58,168],[57,0,65,19],[59,72,64,79],[59,80,64,90],[59,91,64,95],[59,96,64,111],[59,112,64,117],[60,38,119,43],[70,106,73,125],[70,169,73,173],[74,72,79,97],[74,98,77,175],[75,46,88,70],[86,169,89,173],[60,46,72,70],[62,20,65,36],[65,73,69,174],[80,73,85,156],[80,157,85,163],[82,20,85,36],[86,105,89,125],[86,126,89,168],[97,0,105,19],[102,20,105,36],[91,46,103,70],[77,0,85,19],[224,23,227,28],[224,29,227,30],[224,31,227,37],[212,58,215,66],[212,67,215,69],[212,70,215,83],[224,58,227,66],[224,67,227,69],[224,70,227,83],[212,23,215,28],[212,29,215,30],[212,31,215,37],[148,37,150,39],[148,82,150,111],[177,1,189,35],[192,1,204,35],[179,38,204,65],[179,66,181,68],[212,41,215,57],[212,101,215,105],[2,99,10,175],[244,166,248,173],[244,164,248,165],[244,156,248,163],[244,154,248,155],[244,148,248,153],[26,117,29,123],[26,128,29,134],[30,117,32,123],[30,128,32,134],[70,126,73,134],[70,135,73,137],[70,138,73,151],[70,152,73,154],[70,155,73,168],[16,29,22,154],[25,72,28,75],[25,149,28,152],[26,93,32,114],[26,124,32,127],[26,137,32,147],[136,113,139,141],[50,108,54,125],[50,126,54,168]]}
[]
[]
[null,null,null,null,null,null,null,null,null,null,null,null,null,null,null,null,null,null,null,null,null,null,null,null,null,null,null,null,null,null,null,null,null,null,null,null,null,null,null,null,null,null,null,null,null,null,null,null,null,null,null,null,null,null,null,null,null,null,null,null,null,null,null,null,null,null,null,null,null,null,null,null,null,null,null,null,null,null,null,null,null,null,null,null,null,null,null,null,null,null,null,null,null,null,null,null,null,null,null,"令和元年10月　手持品課税用"]
[]
[]
[]
[]
[]
[]
[]
[]
[]
[]
[]
[]
[]
[null,null,null,null,null,null,null,null,null,null,null,null,null,null,null,null,null,null,null,null,null,null,null,null,null,null,null,null,null,"たばこ税等の手持品課税納税申告書"]
[]
[]
[]
[]
[]
[]
[]
[]
[null,null,null,null,null,null,null,null,null,null,null,null,null,null,null,null,null,null,null,null,null,null,null,null,null,null,null,null,null,null,null,null,null,null,null,null,null,null,null,null,null,null,null,null,null,null,null,null,null,null,null,null,null,null,null,null,null,null,null,null,null,null,null,null,null,null,null,null,null,null,null,null,"※",null,null,null,null,null,null,null,null,null,null,null,null,null,null,null,null,null,null,null,null,null,null,null,null,null,null,null,null,null,null,null,null,null,null,null,null,null,null,null,null,null,null,null,null,null,null,null,null,null,null,null,null,null,null,null,null,null,null,null,null,null,null,null,null,null,null,null,null,null,null,null,null,null,null,null,null,"※"]
[null,null,null,null,null,null,null,null,null,null,null,null,null,null,null,null,null,null,null,null,null,null,null,null,null,null,null,null,null,null,null,null,null,null,null,null,null,null,null,null,null,null,null,null,null,null,null,null,null,null,null,null,null,null,null,null,null,null,null,null,null,null,null,null,null,null,null,null,null,null,null,null,null,null,null,null,null,null,null,null,null,null,null,null,null,null,null,null,null,null,null,null,null,"申告者の種別",null,null,null,null,null,null,null,null,null,null,null,null,null,null,null,null,null,null,null,null,null,null,null,"小",null,null,null,null,null,null,"・",null,null,null,"卸",null,null,null,null,null,null,null,null,"通信日付印"]
[]
[]
[null,null,null,null,null,null,null,"収受印",null,null,null,null,null,null,null,null,null,null,null,null,null,null,null,null,null,null,null,null,null,null,null,null,null,null,null,null,null,null,null,null,null,null,null,null,null,null,null,null,null,null,null,null,null,null,null,null,null,null,null,null,null,null,null,null,null,null,null,null,null,null,null,null,null,null,null,null,null,null,null,null,null,null,null,null,null,null,null,null,null,null,null,null,null,null,null,null,null,null,null,null,null,null,null,null,null,null,null,null,null,null,null,null,null,null,null,null,null,null,null,null,null,null,null,null,null,null,null,null,null,null,null,null,null,null,null,null,null,null,null,null,null,null,null,null,null,null,null,null,null,null,"令和　　年　　月　　日"]
[]
[]
[]
[]
[null,null,null,null,null,null,null,null,null,null,null,null,null,null,null,null,null,null,null,null,null,null,null,null,null,null,null,null,null,null,null,null,null,null,null,null,null,null,null,null,null,null,null,null,null,null,null,null,null,null,null,null,null,null,null,null,null,null,null,null,null,null,null,null,null,null,null,null,null,null,null,null,"（〒",null,null,null,null,null,null,null,{"$f":"IF(入力用!CC35=\"\",\"\",入力用!CC35)","v":""},null,null,null,null,null,null,null,null,null,null,"-",null,null,null,null,{"$f":"IF(入力用!CS35=\"\",\"\",入力用!CS35)","v":""},null,null,null,null,null,null,null,null,null,null,null,null,null,null,null,")"]
[null,null,null,null,null,null,null,null,null,null,null,null,null,null,null,null,null,null,null,null,null,null,null,null,null,null,null,null,null,null,null,null,null,null,null,null,null,null,"営業所又は貯蔵場所\nの所在地及び名称"]
[]
[]
[null,"令和",null,null,null,null,null,{"$f":"IF(入力用!H39=\"\",\"\",入力用!H39)","v":""},null,null,null,null,"年",null,null,null,null,{"$f":"IF(入力用!R39=\"\",\"\",入力用!R39)","v":""},null,null,null,null,"月",null,null,null,null,{"$f":"IF(入力用!AB39=\"\",\"\",入力用!AB39)","v":""},null,null,null,null,"日"]
[]
[]
[null,null,null,null,null,null,null,null,null,null,null,null,null,null,null,null,null,null,null,null,null,null,null,null,null,null,null,null,null,null,null,null,null,null,null,null,null,null,null,null,null,null,null,null,null,null,null,null,null,null,null,null,null,null,null,null,null,null,null,null,null,null,null,null,null,null,null,null,null,null,null,null,null,{"$f":"IF(入力用!BV42=\"\",\"\",入力用!BV42)","v":""}]
[]
[]
[]
[]
[]
[]
[]
[]
[null,null,null,null,null,null,null,null,null,null,null,null,null,null,null,null,null,null,null,null,null,null,null,null,null,null,null,null,null,null,null,null,null,null,null,null,null,null,null,null,null,null,null,null,null,null,null,null,null,null,null,null,null,null,null,null,null,null,null,null,null,null,null,null,null,null,null,null,null,null,null,null,null,null,null,null,null,null,null,null,null,null,null,null,null,null,null,null,null,null,null,null,null,null,null,null,null,null,null,null,null,null,null,null,null,null,null,null,"店舗名（",null,null,null,null,null,null,null,null,null,null,null,null,null,null,null,null,null,{"$f":"IF(入力用!DW51=\"\",\"\",入力用!DW51)","v":""},null,null,null,null,null,null,null,null,null,null,null,null,null,null,null,null,null,null,null,null,null,null,null,null,null,null,null,null,null,null,null,null,null,null,null,null,null,null,null,null,null,null,"）"]
[]
[]
[]
[]
[null,null,null,null,null,null,null,null,null,null,null,null,null,null,null,null,null,null,null,null,null,null,null,null,null,null,null,null,null,null,null,null,null,null,null,null,null,null,null,null,null,null,null,null,null,null,null,null,null,null,null,null,null,null,null,null,null,null,null,null,null,null,null,null,null,null,null,null,null,null,null,null,null,null,null,null,null,null,null,null,null,null,null,null,null,null,null,null,null,null,null,null,null,null,null,null,null,null,null,null,null,null,null,null,null,"（電話番号",null,null,null,null,null,null,null,null,null,null,null,null,null,null,null,null,null,null,null,null,{"$f":"IF(入力用!DW56=\"\",\"\",入力用!DW56)","v":""},null,null,null,null,null,null,null,null,"-",null,null,{"$f":"IF(入力用!EI56=\"\",\"\",入力用!EI56)","v":""},null,null,null,null,null,null,null,null,null,null,null,null,null,"-",null,null,{"$f":"IF(入力用!EZ56=\"\",\"\",入力用!EZ56)","v":""},null,null,null,null,null,null,null,null,null,null,null,null,null,"）"]
[]
[{"$f":"IF(入力用!A58=\"\",\"\",入力用!A58)","v":""}]
[]
[null,null,null,null,null,null,null,null,null,null,null,null,null,null,null,null,null,null,null,null,null,null,null,null,null,null,null,null,null,null,null,null,null,null,null,null,null,null,null,null,null,null,null,null,null,null,null,null,null,null,null,null,null,null,null,null,null,null,null,null,null,null,null,null,null,null,null,null,null,null,null,null,"（〒",null,null,null,null,null,null,null,{"$f":"IF(入力用!CC60=\"\",\"\",入力用!CC60)","v":""},null,null,null,null,null,null,null,null,null,null,"-",null,null,null,null,{"$f":"IF(入力用!CS60=\"\",\"\",入力用!CS60)","v":""},null,null,null,null,null,null,null,null,null,null,null,null,null,null,null,")"]
[null,null,null,null,null,null,null,null,null,null,null,null,null,null,null,null,null,null,null,null,null,null,null,null,null,null,null,null,null,null,null,null,null,null,null,null,null,null,"申　　告　　者",null,null,null,null,null,null,null,"住所"]
[]
[null,null,null,null,null,null,null,null,null,null,null,null,null,null,null,null,null,null,null,null,"税務署長殿"]
[]
[]
[null,null,null,null,null,null,null,null,null,null,null,null,null,null,null,null,null,null,null,null,null,null,null,null,null,null,null,null,null,null,null,null,null,null,null,null,null,null,null,null,null,null,null,null,null,null,null,null,null,null,null,null,null,null,null,null,null,null,null,null,null,null,null,null,null,null,null,null,null,null,null,null,null,{"$f":"IF(入力用!BV66=\"\",\"\",入力用!BV66)","v":""}]
[]
[]
[]
[]
[null,null,null,null,null,null,null,null,null,null,null,null,null,null,null,null,null,null,null,null,null,null,null,null,null,null,null,null,null,null,null,null,null,null,null,null,null,null,null,null,null,null,null,null,null,null,null,null,null,null,null,null,null,null,null,null,null,null,null,null,null,null,null,null,null,null,null,null,null,null,null,null,null,null,null,null,null,null,null,null,null,null,null,null,null,null,null,null,null,null,null,null,null,null,null,null,null,null,null,null,null,null,null,null,null,null,"（電話番号",null,null,null,null,null,null,null,null,null,null,null,null,null,null,null,null,null,null,null,{"$f":"IF(入力用!DW71=\"\",\"\",入力用!DW71)","v":""},null,null,null,null,null,null,null,null,"-",null,null,{"$f":"IF(入力用!EI71=\"\",\"\",入力用!EI71)","v":""},null,null,null,null,null,null,null,null,null,null,null,null,null,"-",null,null,{"$f":"IF(入力用!EZ71=\"\",\"\",入力用!EZ71)","v":""},null,null,null,null,null,null,null,null,null,null,null,null,null,"）"]
[]
[]
[]
[null,null,null,null,null,null,null,null,null,null,null,null,null,null,null,null,null,null,null,null,null,null,null,null,null,null,null,null,null,null,null,null,null,null,null,null,null,null,null,null,null,null,null,null,null,null,null,null,null,null,null,null,null,null,null,null,null,null,null,null,null,null,null,null,null,null,null,null,null,null,null,null,"（フリガナ）",null,null,null,null,null,null,null,null,null,null,null,null,null,null,null,null,null,null,null,null,null,null,null,null,null,{"$f":"IF(入力用!CU75=\"\",\"\",入力用!CU75)","v":""}]
[null,null,null,null,null,null,null,null,null,null,null,null,null,null,null,null,null,null,null,null,null,null,null,null,null,null,null,null,null,null,null,null,null,null,null,null,null,null,null,null,null,null,null,null,null,null,"氏名又は名称\n及び代表者氏名"]
[]
[{"$f":"IF(入力用!A78=\"\",\"\",入力用!A78)","v":""}]
[]
[]
[null,null,null,null,null,null,null,null,null,null,null,null,null,null,null,null,null,null,null,null,null,null,null,null,null,null,null,null,null,null,null,null,null,null,null,null,null,null,null,null,null,null,null,null,null,null,null,null,null,null,null,null,null,null,null,null,null,null,null,null,null,null,null,null,null,null,null,null,null,null,null,null,null,{"$f":"IF(入力用!BV81=\"\",\"\",入力用!BV81)","v":""},null,null,null,null,null,null,null,null,null,null,null,null,null,null,null,null,null,null,null,null,null,null,null,null,null,null,null,null,null,null,null,null,null,null,null,null,null,null,null,null,null,null,null,null,null,null,null,null,null,null,null,null,null,null,null,null,null,null,null,null,null,null,null,null,null,null,null,null,null,null,null,null,null,null,null,null,null,null,null,null,null,null,null,"㊞"]
[]
[null,null,null,null,null,null,null,null,null,null,null,null,null,null,null,null,null,null,null,null,"知事殿"]
[]
[]
[]
[]
[]
[]
[]
[]
[null,null,null,null,null,null,null,null,null,null,null,null,null,null,null,null,null,null,null,null,null,null,null,null,null,null,null,null,null,null,null,null,null,null,null,null,null,null,null,null,null,null,null,null,null,null,"個人番号又は\n法人番号"]
[null,null,null,null,null,null,null,null,null,null,null,null,null,null,null,null,null,null,null,null,null,null,null,null,null,null,null,null,null,null,null,null,null,null,null,null,null,null,null,null,null,null,null,null,null,null,null,null,null,null,null,null,null,null,null,null,null,null,null,null,null,null,null,null,null,null,null,null,null,null,null,null,null,"この欄は、２枚目から記入してください"]
[]
[]
[]
[]
[{"$f":"IF(入力用!A98=\"\",\"\",入力用!A98)","v":""}]
[]
[]
[]
[]
[null,null,null,null,null,null,null,null,null,null,null,null,null,null,null,null,null,null,null,null,"市町村長殿"]
[]
[]
[]
[null,null,null,null,null,null,null,null,null,null,null,null,null,null,null,null,null,null,null,null,null,null,null,null,null,null,null,null,null,null,null,null,null,null,null,null,null,null,null,null,null,null,null,null,null,null,"同上代理人",null,null,null,null,null,null,null,null,null,null,null,null,null,null,null,null,null,null,null,null,null,null,null,null,null,null,{"$f":"IF(入力用!BV107=\"\",\"\",入力用!BV107)","v":""}]
[]
[]
[]
[null,null,null,null,null,null,null,null,null,null,null,null,null,null,null,null,null,null,null,null,null,null,null,null,null,null,null,null,null,null,null,null,null,null,null,null,null,null,null,null,null,null,null,null,null,null,null,null,null,null,null,null,null,null,null,null,null,null,null,null,null,null,null,null,null,null,null,null,null,null,null,null,null,null,null,null,null,null,null,null,null,null,null,null,null,null,null,null,null,null,null,null,null,null,null,null,null,null,null,null,null,null,null,null,null,null,null,null,null,null,null,null,null,null,null,null,null,null,null,null,null,null,null,null,null,null,null,null,null,null,null,null,null,null,null,null,null,null,null,null,null,null,null,null,null,null,null,null,null,null,null,null,null,null,null,null,null,"㊞"]
[]
[]
[]
[]
[]
[]
[]
[]
[]
[]
[]
[null,"下記のとおり、令和元年10月１日現在における、紙巻たばこ三級品に係るたばこ税等の手持品課税"]
[]
[]
[]
[]
[]
[null,"納税申告書を提出します。"]
[]
[]
[]
[]
[]
[]
[null,"区　　　分",null,null,null,null,null,null,null,null,null,null,null,null,null,null,null,null,null,null,null,null,null,null,null,null,null,null,null,null,null,null,null,null,null,null,null,null,"所持する紙巻\nたばこ三級品の数量",null,null,null,null,null,null,null,null,null,null,null,null,null,null,null,null,null,null,null,null,null,null,null,null,null,null,null,null,null,null,null,"１本当た",null,null,null,null,null,null,null,null,null,null,null,null,"税額\n"]
[null,null,null,null,null,null,null,null,null,null,null,null,null,null,null,null,null,null,null,null,null,null,null,null,null,null,null,null,null,null,null,null,null,null,null,null,null,null,null,null,null,null,null,null,null,null,null,null,null,null,null,null,null,null,null,null,null,null,null,null,null,null,null,null,null,null,null,null,null,null,null,null,null,null,null,null,null,null,null,null,null,null,null,"税　　　額",null,null,null,null,null,null,null,null,null,null,null,null,null,null,null,null,null,null,null,null,null,null,null,null,null,null,null,null,null,"修正申告の場合の",null,null,null,null,null,null,null,null,null,null,null,null,null,null,null,null,null,null,null,null,null,null,null,null,null,null,null,null,null,null,"納付すべき税額"]
[]
[]
[]
[null,null,null,null,null,null,null,null,null,null,null,null,null,null,null,null,null,null,null,null,null,null,null,null,null,null,null,null,null,null,null,null,null,null,null,null,null,null,null,null,null,null,null,null,null,null,null,null,null,null,null,null,null,null,null,null,null,null,null,null,null,null,null,null,null,null,null,null,null,null,null,null,null,null,null,null,null,null,null,null,null,null,null,null,null,null,null,null,null,null,null,null,null,null,null,null,null,null,null,null,null,null,null,null,null,null,null,null,null,null,null,null,null,"修正申告前の確定額"]
[null,null,null,null,null,null,null,null,null,null,null,null,null,null,null,null,null,null,null,null,null,null,null,null,null,null,null,null,null,null,null,null,null,null,null,null,null,null,null,null,null,null,null,null,null,null,null,null,null,null,null,null,null,null,null,null,null,null,null,null,null,null,null,null,null,null,null,null,null,null,"りの税率"]
[]
[]
[null,null,null,null,null,null,null,null,null,null,null,null,null,null,null,null,null,null,null,null,null,null,null,null,null,null,null,null,null,null,null,null,null,null,null,null,null,null,null,null,null,null,null,null,null,null,null,null,null,null,null,null,null,null,null,null,null,null,null,null,null,null,null,null,null,null,null,null,null,null,null,null,null,null,null,null,null,null,null,null,null,null,null,"(100円未満切捨て)",null,null,null,null,null,null,null,null,null,null,null,null,null,null,null,null,null,null,null,null,null,null,null,null,null,null,null,null,null,"(100円単位で記入)",null,null,null,null,null,null,null,null,null,null,null,null,null,null,null,null,null,null,null,null,null,null,null,null,null,null,null,null,null,null,"(100円単位で記入)"]
[]
[]
[]
[null,null,null,null,null,null,null,null,null,null,null,null,null,null,null,null,null,null,null,null,null,null,null,null,null,null,null,null,null,null,null,null,null,null,null,null,null,"①",null,null,null,null,null,null,null,null,null,null,null,null,null,null,null,null,null,null,null,null,null,null,null,null,null,null,null,null,null,null,null,null,null,null,null,null,null,null,null,null,null,null,null,null,{"$f":"\"②（①×\"&BS152 &\"）\"","v":"②（①×1.966）"},null,null,null,null,null,null,null,null,null,null,null,null,null,null,null,null,null,null,null,null,null,null,null,null,null,null,null,null,null,"③",null,null,null,null,null,null,null,null,null,null,null,null,null,null,null,null,null,null,null,null,null,null,null,null,null,null,null,null,null,null,"④（②又は②－③）"]
[null,"たばこ税及び\nたばこ特別税"]
[]
[null,null,null,null,null,null,null,null,null,null,null,null,null,null,null,null,null,null,null,null,null,null,null,null,null,null,null,null,null,null,null,null,null,null,null,null,null,null,{"$f":"IF(入力用!AM152=\"\",\"\",入力用!AM152)","v":""},null,null,null,null,null,null,null,null,null,null,null,null,null,null,null,null,null,null,null,null,null,null,null,null,null,null,null,"本",null,null,null,1.966,null,null,null,null,null,null,null,null,null,null,null,null,{"$f":"IF(AM152=\"\",\"00\",ROUNDDOWN(AM152*BS152,-2))","v":"00"},null,null,null,null,null,null,null,null,null,null,null,null,null,null,null,null,null,null,null,null,null,null,null,null,null,"円",null,null,null,null,{"$f":"IF(入力用!DK152=\"\",\"\",入力用!DK152)","v":0},null,null,null,null,null,null,null,null,null,null,null,null,null,null,null,null,null,null,null,null,null,null,null,null,null,"円",null,null,null,null,{"$f":"IF(AM152=\"\",\"00\",IF(DK152=\"\",CF152,CF152-DK152))","v":"00"},null,null,null,null,null,null,null,null,null,null,null,null,null,null,null,null,null,null,null,null,null,null,null,null,null,null,null,"円"]
[]
[]
[]
[]
[]
[]
[]
[]
[]
[]
[]
[null,"区　　　分",null,null,null,null,null,null,null,null,null,null,null,null,null,null,null,null,null,null,null,null,null,null,null,null,null,null,null,null,null,null,null,null,null,null,null,null,"課税標準となる紙巻\nたばこ三級品の本数",null,null,null,null,null,null,null,null,null,null,null,null,null,null,null,null,null,null,null,null,null,null,null,null,null,null,null,null,null,null,null,"１本当た"]
[null,null,null,null,null,null,null,null,null,null,null,null,null,null,null,null,null,null,null,null,null,null,null,null,null,null,null,null,null,null,null,null,null,null,null,null,null,null,null,null,null,null,null,null,null,null,null,null,null,null,null,null,null,null,null,null,null,null,null,null,null,null,null,null,null,null,null,null,null,null,null,null,null,null,null,null,null,null,null,null,null,null,null,"税　　　額",null,null,null,null,null,null,null,null,null,null,null,null,null,null,null,null,null,null,null,null,null,null,null,null,null,null,null,null,null,"修正申告の場合の\n修正申告前の確定額",null,null,null,null,null,null,null,null,null,null,null,null,null,null,null,null,null,null,null,null,null,null,null,null,null,null,null,null,null,null,"納付すべき税額"]
[]
[]
[null,null,null,null,null,null,null,null,null,null,null,null,null,null,null,null,null,null,null,null,null,null,null,null,null,null,null,null,null,null,null,null,null,null,null,null,null,null,null,null,null,null,null,null,null,null,null,null,null,null,null,null,null,null,null,null,null,null,null,null,null,null,null,null,null,null,null,null,null,null,null,null,null,null,null,null,null,null,null,null,null,null,null,null,null,null,null,null,null,null,null,null,null,null,null,null,null,null,null,null,null,null,null,null,null,null,null,null,null,null,null,null,null,null,null,null,null,null,null,null,null,null,null,null,null,null,null,null,null,null,null,null,null,null,null,null,null,null,null,null,null,null,null,null,null,null,null,null,null,null,null,null,null,null,null,null,null,null,null,null,null,null,null,null,null,null,null,null,null,null,null,null,null,null,null,null,null,null,null,null,null,null,null,null,null,null,null,null,null,null,null,null,null,null,null,null,null,null,null,null,null,null,"ｐ"]
[]
[null,null,null,null,null,null,null,null,null,null,null,null,null,null,null,null,null,null,null,null,null,null,null,null,null,null,null,null,null,null,null,null,null,null,null,null,null,null,null,null,null,null,null,null,null,null,null,null,null,null,null,null,null,null,null,null,null,null,null,null,null,null,null,null,null,null,null,null,null,null,"りの税率"]
[]
[]
[null,null,null,null,null,null,null,null,null,null,null,null,null,null,null,null,null,null,null,null,null,null,null,null,null,null,null,null,null,null,null,null,null,null,null,null,null,null,null,null,null,null,null,null,null,null,null,null,null,null,null,null,null,null,null,null,null,null,null,null,null,null,null,null,null,null,null,null,null,null,null,null,null,null,null,null,null,null,null,null,null,null,null,"(1円未満切捨て)",null,null,null,null,null,null,null,null,null,null,null,null,null,null,null,null,null,null,null,null,null,null,null,null,null,null,null,null,null,"(1円単位で記入)",null,null,null,null,null,null,null,null,null,null,null,null,null,null,null,null,null,null,null,null,null,null,null,null,null,null,null,null,null,null,"(1円単位で記入)"]
[]
[]
[]
[null,null,null,null,null,null,null,null,null,null,null,null,null,null,null,null,null,null,null,null,null,null,null,null,null,null,null,null,null,null,null,null,null,null,null,null,null,"⑤",null,null,null,null,null,null,null,null,null,null,null,null,null,null,null,null,null,null,null,null,null,null,null,null,null,null,null,null,null,null,null,null,null,null,null,null,null,null,null,null,null,null,null,null,{"$f":"\"⑥（⑤×\"&BS178 &\"）\"","v":"⑥（⑤×0.274）"},null,null,null,null,null,null,null,null,null,null,null,null,null,null,null,null,null,null,null,null,null,null,null,null,null,null,null,null,null,"⑦",null,null,null,null,null,null,null,null,null,null,null,null,null,null,null,null,null,null,null,null,null,null,null,null,null,null,null,null,null,null,"⑧（⑥又は⑥－⑦）"]
[null,"道府県税",null,null,null,null,null,null,null,null,null,null,null,null,null,null,null,null,null,null,null,null,null,null,null,null,null,null,null,null,null,null,null,null,null,null,null,null,null,null,null,null,null,null,null,null,null,null,null,null,null,null,null,null,null,null,null,null,null,null,null,null,null,null,null,null,null,null,null,null,0.27400000000000002]
[]
[null,null,null,null,null,null,null,null,null,null,null,null,null,null,null,null,null,null,null,null,null,null,null,null,null,null,null,null,null,null,null,null,null,null,null,null,null,null,{"$f":"IF(入力用!AM180=\"\",\"\",入力用!AM180)","v":""},null,null,null,null,null,null,null,null,null,null,null,null,null,null,null,null,null,null,null,null,null,null,null,null,null,null,null,"本",null,null,null,null,null,null,null,null,null,null,null,null,null,null,null,null,{"$f":"IF(AM180=\"\",\"\",ROUNDDOWN(AM180*BS178,0))","v":""},null,null,null,null,null,null,null,null,null,null,null,null,null,null,null,null,null,null,null,null,null,null,null,null,null,"円",null,null,null,null,{"$f":"IF(入力用!DK180=\"\",\"\",入力用!DK180)","v":0},null,null,null,null,null,null,null,null,null,null,null,null,null,null,null,null,null,null,null,null,null,null,null,null,null,"円",null,null,null,null,{"$f":"IF(AM180=\"\",\"\",IF(DK180=\"\",CF180,CF180-DK180))","v":""},null,null,null,null,null,null,null,null,null,null,null,null,null,null,null,null,null,null,null,null,null,null,null,null,null,null,null,"円"]
[]
[]
[]
[]
[]
[]
[]
[]
[]
[]
[]
[null,null,null,null,null,null,null,null,null,null,null,null,null,null,null,null,null,null,null,null,null,null,null,null,null,null,null,null,null,null,null,null,null,null,null,null,null,null,null,null,null,null,null,null,null,null,null,null,null,null,null,null,null,null,null,null,null,null,null,null,null,null,null,null,null,null,null,null,null,null,null,null,null,null,null,null,null,null,null,null,null,null,{"$f":"\"⑨（⑤×\"&BS193 &\"）\"","v":"⑨（⑤×1.692）"},null,null,null,null,null,null,null,null,null,null,null,null,null,null,null,null,null,null,null,null,null,null,null,null,null,null,null,null,null,"⑩",null,null,null,null,null,null,null,null,null,null,null,null,null,null,null,null,null,null,null,null,null,null,null,null,null,null,null,null,null,null,"⑪（⑨又は⑨－⑩）"]
[null,"市町村税",null,null,null,null,null,null,null,null,null,null,null,null,null,null,null,null,null,null,null,null,null,null,null,null,null,null,null,null,null,null,null,null,null,null,null,null,null,null,null,null,null,null,null,null,null,null,null,null,null,null,null,null,null,null,null,null,null,null,null,null,null,null,null,null,null,null,null,null,1.6919999999999999]
[]
[null,null,null,null,null,null,null,null,null,null,null,null,null,null,null,null,null,null,null,null,null,null,null,null,null,null,null,null,null,null,null,null,null,null,null,null,null,null,null,null,null,null,null,null,null,null,null,null,null,null,null,null,null,null,null,null,null,null,null,null,null,null,null,null,null,null,null,null,null,null,null,null,null,null,null,null,null,null,null,null,null,null,null,{"$f":"IF(AM180=\"\",\"\",ROUNDDOWN(AM180*BS193,0))","v":""},null,null,null,null,null,null,null,null,null,null,null,null,null,null,null,null,null,null,null,null,null,null,null,null,null,"円",null,null,null,null,{"$f":"IF(入力用!DK195=\"\",\"\",入力用!DK195)","v":0},null,null,null,null,null,null,null,null,null,null,null,null,null,null,null,null,null,null,null,null,null,null,null,null,null,"円",null,null,null,null,{"$f":"IF(AM180=\"\",\"\",IF(DK195=\"\",CF195,CF195-DK195))","v":""},null,null,null,null,null,null,null,null,null,null,null,null,null,null,null,null,null,null,null,null,null,null,null,null,null,null,null,"円"]
[]
[]
[]
[]
[]
[]
[]
[]
[]
[]
[]
[]
[null,"出張販売\n先、自動\n販売機等\nの所在地\n及び名称",null,null,null,null,null,null,null,null,null,null,null,null,null,null,null,null,"所　　在　　地",null,null,null,null,null,null,null,null,null,null,null,null,null,null,null,null,null,null,null,null,null,null,null,null,null,null,null,null,null,null,null,null,null,null,null,null,null,null,null,null,null,null,null,null,null,null,null,null,null,null,null,null,null,null,null,null,null,null,null,null,null,null,null,null,null,null,null,null,null,null,null,null,null,null,null,null,null,null,null,null,null,null,null,null,null,null,null,null,null,null,null,null,null,null,null,null,null,null,null,null,null,null,null,null,"名　　称"]
[]
[]
[]
[]
[null,null,null,null,null,null,null,null,null,null,null,null,null,null,null,null,null,null,"（〒",null,null,null,null,{"$f":"IF(入力用!X213=\"\",\"\",入力用!X213)","v":""},null,null,null,null,null,"-",null,{"$f":"IF(入力用!AF213=\"\",\"\",入力用!AF213)","v":""},null,null,null,null,null,null,"）",null,null,"（電話番号",null,null,null,null,null,null,null,null,null,null,null,null,null,null,null,null,{"$f":"IF(入力用!BG213=\"\",\"\",入力用!BG213)","v":""},null,null,null,null,null,null,null,null,"-",null,null,{"$f":"IF(入力用!BS213=\"\",\"\",入力用!BS213)","v":""},null,null,null,null,null,null,null,null,null,null,null,null,null,"-",null,null,{"$f":"IF(入力用!CJ213=\"\",\"\",入力用!CJ213)","v":""},null,null,null,null,null,null,null,null,null,null,null,null,null,"）"]
[null,null,null,null,null,null,null,null,null,null,null,null,null,null,null,null,null,null,null,null,null,null,null,null,null,null,null,null,null,null,null,null,null,null,null,null,null,null,null,null,null,null,null,null,null,null,null,null,null,null,null,null,null,null,null,null,null,null,null,null,null,null,null,null,null,null,null,null,null,null,null,null,null,null,null,null,null,null,null,null,null,null,null,null,null,null,null,null,null,null,null,null,null,null,null,null,null,null,null,null,null,null,null,null,null,null,null,null,null,null,null,null,null,null,null,null,null,null,null,null,null,null,null,{"$f":"IF(入力用!DT214=\"\",\"\",入力用!DT214)","v":""}]
[]
[]
[]
[]
[null,null,null,null,null,null,null,null,null,null,null,null,null,null,null,null,null,null,{"$f":"IF(入力用!S219=\"\",\"\",入力用!S219)","v":""}]
[]
[]
[]
[]
[]
[null,null,null,null,null,null,null,null,null,null,null,null,null,null,null,null,null,null,"（〒",null,null,null,null,{"$f":"IF(入力用!X225=\"\",\"\",入力用!X225)","v":""},null,null,null,null,null,"-",null,{"$f":"IF(入力用!AF225=\"\",\"\",入力用!AF225)","v":""},null,null,null,null,null,null,"）",null,null,"（電話番号",null,null,null,null,null,null,null,null,null,null,null,null,null,null,null,null,{"$f":"IF(入力用!BG225=\"\",\"\",入力用!BG225)","v":""},null,null,null,null,null,null,null,null,"-",null,null,{"$f":"IF(入力用!BS225=\"\",\"\",入力用!BS225)","v":""},null,null,null,null,null,null,null,null,null,null,null,null,null,"-",null,null,{"$f":"IF(入力用!CJ225=\"\",\"\",入力用!CJ225)","v":""},null,null,null,null,null,null,null,null,null,null,null,null,null,"）"]
[null,null,null,null,null,null,null,null,null,null,null,null,null,null,null,null,null,null,null,null,null,null,null,null,null,null,null,null,null,null,null,null,null,null,null,null,null,null,null,null,null,null,null,null,null,null,null,null,null,null,null,null,null,null,null,null,null,null,null,null,null,null,null,null,null,null,null,null,null,null,null,null,null,null,null,null,null,null,null,null,null,null,null,null,null,null,null,null,null,null,null,null,null,null,null,null,null,null,null,null,null,null,null,null,null,null,null,null,null,null,null,null,null,null,null,null,null,null,null,null,null,null,null,{"$f":"IF(入力用!DT226=\"\",\"\",入力用!DT226)","v":""}]
[]
[]
[]
[]
[null,null,null,null,null,null,null,null,null,null,null,null,null,null,null,null,null,null,{"$f":"IF(入力用!S231=\"\",\"\",入力用!S231)","v":""}]
[]
[]
[]
[]
[null,null,null,null,null,null,null,null,null,null,null,null,null,null,null,null,null,null,null,null,null,null,null,null,null,null,null,null,null,null,null,null,null,null,null,null,null,null,null,null,null,null,null,null,null,null,null,null,null,null,null,null,null,null,null,null,null,null,null,null,null,null,null,null,null,null,null,null,null,null,null,null,null,null,null,null,null,null,null,null,null,null,null,null,"作成税理士署名・押印"]
[null,"税理士法第30条の書面提出"]
[]
[]
[]
[]
[]
[]
[null,"税理士法第33条の2の書面提出"]
[null,null,null,null,null,null,null,null,null,null,null,null,null,null,null,null,null,null,null,null,null,null,null,null,null,null,null,null,null,null,null,null,null,null,null,null,null,null,null,null,null,null,null,null,null,null,null,null,null,null,null,null,null,null,null,null,null,null,null,null,null,null,null,null,null,null,null,null,null,null,null,null,null,null,null,null,null,null,null,null,null,null,null,null,null,null,null,null,null,null,null,null,null,null,null,null,null,null,null,null,null,null,null,null,null,null,null,null,null,null,null,null,null,null,null,null,null,null,null,null,null,null,null,null,null,null,null,null,null,null,"㊞",null,null,null,null,"（電話番号",null,null,null,null,null,null,null,null,null,null,null,null,{"$f":"IF(入力用!ES245=\"\",\"\",入力用!ES245)","v":""},null,null,null,null,null,"-",null,{"$f":"IF(入力用!FA245=\"\",\"\",入力用!FA245)","v":""},null,null,null,null,null,null,null,"-",null,{"$f":"IF(入力用!FK245=\"\",\"\",入力用!FK245)","v":""},null,null,null,null,null,null,null,"）"]
[]
[]
[]
[]
["（注）",null,null,null,null,null,null,"１ 必要事項をボールペンで強く記入してください。なお、※欄には記入しないでください。"]
[]
[]
[]
[null,null,null,null,null,null,null,"２ 出張販売先、自動販売機等の貯蔵場所が複数あり、この用紙に記載できない場合には、適宜の様式に記載し、この"]
[]
[]
[]
[null,null,null,null,null,null,null,null,null,null,"用紙と併せて提出してください。"]
[]
[]
[]
[]
[]
[]
[]
[]
[]
[]
[]
[]
[" 紙巻たばこ三級品とは、次の６銘柄をいいます。\n ① わかば　　　② エコー　　　③ しんせい　　　④ ゴールデンバット\n ⑤ ウルマ　　　⑥ バイオレット"]

{"sheet":"税務署用","index":2,"n_rows":283,"n_cols":175,"rows_kept":283,"cut":false,"hidden":false,"merged":[[16,29,22,154],[25,72,28,75],[25,149,28,152],[26,93,32,114],[26,124,32,127],[26,137,32,147],[50,108,54,125],[50,126,54,168],[50,169,54,173],[55,105,58,125],[55,169,58,173],[29,7,32,19],[34,72,39,79],[34,80,39,90],[34,91,39,95],[34,96,39,111],[34,112,39,117],[35,38,57,70],[41,73,49,174],[55,126,58,134],[55,135,58,137],[55,138,58,151],[55,152,58,154],[55,155,58,168],[26,117,29,123],[26,128,29,134],[30,117,32,123],[30,128,32,134],[38,22,42,26],[38,27,42,31],[38,32,42,36],[38,1,42,6],[38,7,42,11],[38,12,42,16],[38,17,42,21],[75,46,88,70],[86,169,89,173],[57,0,65,19],[59,72,64,79],[59,80,64,90],[59,91,64,95],[59,96,64,111],[59,112,64,117],[60,38,119,43],[60,46,72,70],[62,20,65,36],[65,73,69,174],[80,73,85,156],[80,157,85,163],[86,105,89,125],[86,126,89,168],[70,106,73,125],[70,169,73,173],[74,72,79,97],[74,98,77,175],[94,137,103,142],[94,145,103,150],[94,153,103,158],[94,161,103,166],[94,169,103,174],[90,81,93,174],[91,46,103,70],[94,73,103,78],[94,81,103,86],[94,89,103,94],[94,97,103,102],[94,105,103,110],[94,113,103,118],[94,121,103,126],[94,129,103,134],[106,46,119,70],[106,73,119,156],[110,157,115,163],[122,1,126,174],[128,1,132,174],[135,1,146,35],[135,38,146,67],[135,70,140,80],[136,83,143,110],[136,144,143,174],[141,70,146,80],[144,83,147,110],[144,113,147,140],[144,144,147,174],[151,70,160,80],[151,83,160,108],[151,109,153,111],[224,23,227,28],[224,29,227,30],[224,31,227,37],[224,58,227,66],[224,67,227,69],[224,70,227,83],[224,84,227,86],[224,87,227,100],[235,84,239,121],[236,1,240,73],[236,77,240,81],[240,85,246,128],[243,1,247,73],[243,77,247,81],[244,130,247,133],[207,1,233,15],[207,18,210,120],[207,123,210,174],[212,41,215,57],[212,101,215,105],[213,123,222,174],[218,18,222,120],[224,18,227,22],[224,38,227,40],[224,41,227,57],[212,18,215,22],[212,38,215,40],[224,101,227,105],[225,123,233,174],[230,18,233,120],[264,146,268,172],[244,135,248,147],[244,174,248,175],[250,1,254,174],[256,55,259,58],[256,122,259,125],[257,1,261,53],[257,59,261,110],[257,113,261,120],[257,146,261,172],[244,166,248,173],[244,164,248,165],[244,156,248,163],[244,154,248,155],[244,148,248,153],[271,30,280,43],[273,54,275,59],[274,69,277,136],[277,50,278,51],[263,55,266,58],[263,122,266,125],[264,1,268,53],[264,59,268,110],[264,113,268,120],[277,173,281,175],[278,69,281,136],[282,0,285,74],[136,113,139,141],[140,113,143,141],[162,0,205,175],[277,155,281,157],[277,158,281,160],[277,161,281,163],[277,164,281,166],[277,167,281,169],[277,170,281,172],[277,54,279,59],[277,140,281,142],[277,143,281,145],[277,146,281,148],[277,149,281,151],[277,152,281,154],[270,17,273,20],[270,45,273,48],[270,61,273,64],[270,67,273,77],[270,140,273,143],[271,1,280,15],[70,126,73,134],[70,135,73,137],[70,138,73,151],[70,152,73,154],[70,155,73,168],[212,23,215,28],[212,29,215,30],[212,31,215,37],[212,58,215,66],[212,67,215,69],[212,70,215,83],[212,84,215,86],[212,87,215,100],[148,37,150,39],[148,82,150,111],[148,112,150,141],[148,143,150,174],[151,114,160,139],[151,140,153,142],[151,145,160,172],[151,173,153,175],[149,1,160,35],[151,38,160,65],[151,66,153,68]]}
[]
[]
[]
[]
[]
[]
[]
[]
[]
[]
[]
[]
[]
[]
[]
[]
[null,null,null,null,null,null,null,null,null,null,null,null,null,null,null,null,null,null,null,null,null,null,null,null,null,null,null,null,null,"たばこ税及びたばこ特別税の手持品課税納税申告書"]
[]
[]
[]
[]
[]
[]
[]
[]
[null,null,null,null,null,null,null,null,null,null,null,null,null,null,null,null,null,null,null,null,null,null,null,null,null,null,null,null,null,null,null,null,null,null,null,null,null,null,null,null,null,null,null,null,null,null,null,null,null,null,null,null,null,null,null,null,null,null,null,null,null,null,null,null,null,null,null,null,null,null,null,null,"※",null,null,null,null,null,null,null,null,null,null,null,null,null,null,null,null,null,null,null,null,null,null,null,null,null,null,null,null,null,null,null,null,null,null,null,null,null,null,null,null,null,null,null,null,null,null,null,null,null,null,null,null,null,null,null,null,null,null,null,null,null,null,null,null,null,null,null,null,null,null,null,null,null,null,null,null,"※"]
[null,null,null,null,null,null,null,null,null,null,null,null,null,null,null,null,null,null,null,null,null,null,null,null,null,null,null,null,null,null,null,null,null,null,null,null,null,null,null,null,null,null,null,null,null,null,null,null,null,null,null,null,null,null,null,null,null,null,null,null,null,null,null,null,null,null,null,null,null,null,null,null,null,null,null,null,null,null,null,null,null,null,null,null,null,null,null,null,null,null,null,null,null,"申告者の種別",null,null,null,null,null,null,null,null,null,null,null,null,null,null,null,null,null,null,null,null,null,null,null,"小",null,null,null,null,null,null,"・",null,null,null,"卸",null,null,null,null,null,null,null,null,"整理番号"]
[]
[]
[null,null,null,null,null,null,null,"収受印"]
[]
[]
[]
[]
[null,null,null,null,null,null,null,null,null,null,null,null,null,null,null,null,null,null,null,null,null,null,null,null,null,null,null,null,null,null,null,null,null,null,null,null,null,null,null,null,null,null,null,null,null,null,null,null,null,null,null,null,null,null,null,null,null,null,null,null,null,null,null,null,null,null,null,null,null,null,null,null,"（〒",null,null,null,null,null,null,null,{"$f":"IF(入力用!CC35=\"\",\"\",入力用!CC35)","v":""},null,null,null,null,null,null,null,null,null,null,"-",null,null,null,null,{"$f":"IF(入力用!CS35=\"\",\"\",入力用!CS35)","v":""},null,null,null,null,null,null,null,null,null,null,null,null,null,null,null,")"]
[null,null,null,null,null,null,null,null,null,null,null,null,null,null,null,null,null,null,null,null,null,null,null,null,null,null,null,null,null,null,null,null,null,null,null,null,null,null,"営業所又は貯蔵場所\nの所在地及び名称"]
[]
[]
[null,"令和",null,null,null,null,null,{"$f":"IF(入力用!H39=\"\",\"\",入力用!H39)","v":""},null,null,null,null,"年",null,null,null,null,{"$f":"IF(入力用!R39=\"\",\"\",入力用!R39)","v":""},null,null,null,null,"月",null,null,null,null,{"$f":"IF(入力用!AB39=\"\",\"\",入力用!AB39)","v":""},null,null,null,null,"日"]
[]
[]
[null,null,null,null,null,null,null,null,null,null,null,null,null,null,null,null,null,null,null,null,null,null,null,null,null,null,null,null,null,null,null,null,null,null,null,null,null,null,null,null,null,null,null,null,null,null,null,null,null,null,null,null,null,null,null,null,null,null,null,null,null,null,null,null,null,null,null,null,null,null,null,null,null,{"$f":"IF(入力用!BV42=\"\",\"\",入力用!BV42)","v":""}]
[]
[]
[]
[]
[]
[]
[]
[]
[null,null,null,null,null,null,null,null,null,null,null,null,null,null,null,null,null,null,null,null,null,null,null,null,null,null,null,null,null,null,null,null,null,null,null,null,null,null,null,null,null,null,null,null,null,null,null,null,null,null,null,null,null,null,null,null,null,null,null,null,null,null,null,null,null,null,null,null,null,null,null,null,null,null,null,null,null,null,null,null,null,null,null,null,null,null,null,null,null,null,null,null,null,null,null,null,null,null,null,null,null,null,null,null,null,null,null,null,"店舗名（",null,null,null,null,null,null,null,null,null,null,null,null,null,null,null,null,null,{"$f":"IF(入力用!DW51=\"\",\"\",入力用!DW51)","v":""},null,null,null,null,null,null,null,null,null,null,null,null,null,null,null,null,null,null,null,null,null,null,null,null,null,null,null,null,null,null,null,null,null,null,null,null,null,null,null,null,null,null,"）"]
[]
[]
[]
[]
[null,null,null,null,null,null,null,null,null,null,null,null,null,null,null,null,null,null,null,null,null,null,null,null,null,null,null,null,null,null,null,null,null,null,null,null,null,null,null,null,null,null,null,null,null,null,null,null,null,null,null,null,null,null,null,null,null,null,null,null,null,null,null,null,null,null,null,null,null,null,null,null,null,null,null,null,null,null,null,null,null,null,null,null,null,null,null,null,null,null,null,null,null,null,null,null,null,null,null,null,null,null,null,null,null,"（電話番号",null,null,null,null,null,null,null,null,null,null,null,null,null,null,null,null,null,null,null,null,{"$f":"IF(入力用!DW56=\"\",\"\",入力用!DW56)","v":""},null,null,null,null,null,null,null,null,"-",null,null,{"$f":"IF(入力用!EI56=\"\",\"\",入力用!EI56)","v":""},null,null,null,null,null,null,null,null,null,null,null,null,null,"-",null,null,{"$f":"IF(入力用!EZ56=\"\",\"\",入力用!EZ56)","v":""},null,null,null,null,null,null,null,null,null,null,null,null,null,"）"]
[]
[{"$f":"IF(入力用!A58=\"\",\"\",入力用!A58)","v":""}]
[]
[null,null,null,null,null,null,null,null,null,null,null,null,null,null,null,null,null,null,null,null,null,null,null,null,null,null,null,null,null,null,null,null,null,null,null,null,null,null,null,null,null,null,null,null,null,null,null,null,null,null,null,null,null,null,null,null,null,null,null,null,null,null,null,null,null,null,null,null,null,null,null,null,"（〒",null,null,null,null,null,null,null,{"$f":"IF(入力用!CC60=\"\",\"\",入力用!CC60)","v":""},null,null,null,null,null,null,null,null,null,null,"-",null,null,null,null,{"$f":"IF(入力用!CS60=\"\",\"\",入力用!CS60)","v":""},null,null,null,null,null,null,null,null,null,null,null,null,null,null,null,")"]
[null,null,null,null,null,null,null,null,null,null,null,null,null,null,null,null,null,null,null,null,null,null,null,null,null,null,null,null,null,null,null,null,null,null,null,null,null,null,"申　　告　　者",null,null,null,null,null,null,null,"住所"]
[]
[null,null,null,null,null,null,null,null,null,null,null,null,null,null,null,null,null,null,null,null,"税務署長殿"]
[]
[]
[null,null,null,null,null,null,null,null,null,null,null,null,null,null,null,null,null,null,null,null,null,null,null,null,null,null,null,null,null,null,null,null,null,null,null,null,null,null,null,null,null,null,null,null,null,null,null,null,null,null,null,null,null,null,null,null,null,null,null,null,null,null,null,null,null,null,null,null,null,null,null,null,null,{"$f":"IF(入力用!BV66=\"\",\"\",入力用!BV66)","v":""}]
[]
[]
[]
[]
[null,null,null,null,null,null,null,null,null,null,null,null,null,null,null,null,null,null,null,null,null,null,null,null,null,null,null,null,null,null,null,null,null,null,null,null,null,null,null,null,null,null,null,null,null,null,null,null,null,null,null,null,null,null,null,null,null,null,null,null,null,null,null,null,null,null,null,null,null,null,null,null,null,null,null,null,null,null,null,null,null,null,null,null,null,null,null,null,null,null,null,null,null,null,null,null,null,null,null,null,null,null,null,null,null,null,"（電話番号",null,null,null,null,null,null,null,null,null,null,null,null,null,null,null,null,null,null,null,{"$f":"IF(入力用!DW71=\"\",\"\",入力用!DW71)","v":""},null,null,null,null,null,null,null,null,"-",null,null,{"$f":"IF(入力用!EI71=\"\",\"\",入力用!EI71)","v":""},null,null,null,null,null,null,null,null,null,null,null,null,null,"-",null,null,{"$f":"IF(入力用!EZ71=\"\",\"\",入力用!EZ71)","v":""},null,null,null,null,null,null,null,null,null,null,null,null,null,"）"]
[]
[]
[]
[null,null,null,null,null,null,null,null,null,null,null,null,null,null,null,null,null,null,null,null,null,null,null,null,null,null,null,null,null,null,null,null,null,null,null,null,null,null,null,null,null,null,null,null,null,null,null,null,null,null,null,null,null,null,null,null,null,null,null,null,null,null,null,null,null,null,null,null,null,null,null,null,"（フリガナ）",null,null,null,null,null,null,null,null,null,null,null,null,null,null,null,null,null,null,null,null,null,null,null,null,null,{"$f":"IF(入力用!CU75=\"\",\"\",入力用!CU75)","v":""}]
[null,null,null,null,null,null,null,null,null,null,null,null,null,null,null,null,null,null,null,null,null,null,null,null,null,null,null,null,null,null,null,null,null,null,null,null,null,null,null,null,null,null,null,null,null,null,"氏名又は名称\n及び代表者氏名"]
[]
[{"$f":"IF(入力用!A78=\"\",\"\",入力用!A78)","v":""}]
[]
[]
[null,null,null,null,null,null,null,null,null,null,null,null,null,null,null,null,null,null,null,null,null,null,null,null,null,null,null,null,null,null,null,null,null,null,null,null,null,null,null,null,null,null,null,null,null,null,null,null,null,null,null,null,null,null,null,null,null,null,null,null,null,null,null,null,null,null,null,null,null,null,null,null,null,{"$f":"IF(入力用!BV81=\"\",\"\",入力用!BV81)","v":""},null,null,null,null,null,null,null,null,null,null,null,null,null,null,null,null,null,null,null,null,null,null,null,null,null,null,null,null,null,null,null,null,null,null,null,null,null,null,null,null,null,null,null,null,null,null,null,null,null,null,null,null,null,null,null,null,null,null,null,null,null,null,null,null,null,null,null,null,null,null,null,null,null,null,null,null,null,null,null,null,null,null,null,"㊞"]
[]
[]
[]
[]
[]
[]
[]
[]
[]
[null,null,null,null,null,null,null,null,null,null,null,null,null,null,null,null,null,null,null,null,null,null,null,null,null,null,null,null,null,null,null,null,null,null,null,null,null,null,null,null,null,null,null,null,null,null,null,null,null,null,null,null,null,null,null,null,null,null,null,null,null,null,null,null,null,null,null,null,null,null,null,null,null,null,null,null,null,null,null,null,null," ↓個人番号の記載に当たっては、左端を空欄とし、ここから記載してください。"]
[null,null,null,null,null,null,null,null,null,null,null,null,null,null,null,null,null,null,null,null,null,null,null,null,null,null,null,null,null,null,null,null,null,null,null,null,null,null,null,null,null,null,null,null,null,null,"個人番号又は\n法人番号"]
[]
[]
[null,null,null,null,null,null,null,null,null,null,null,null,null,null,null,null,null,null,null,null,null,null,null,null,null,null,null,null,null,null,null,null,null,null,null,null,null,null,null,null,null,null,null,null,null,null,null,null,null,null,null,null,null,null,null,null,null,null,null,null,null,null,null,null,null,null,null,null,null,null,null,null,null,{"$f":"IF(入力用!BV95=\"\",\"\",入力用!BV95)","v":""},null,null,null,null,null,null,null,{"$f":"IF(入力用!CD95=\"\",\"\",入力用!CD95)","v":""},null,null,null,null,null,null,null,{"$f":"IF(入力用!CL95=\"\",\"\",入力用!CL95)","v":""},null,null,null,null,null,null,null,{"$f":"IF(入力用!CT95=\"\",\"\",入力用!CT95)","v":""},null,null,null,null,null,null,null,{"$f":"IF(入力用!DB95=\"\",\"\",入力用!DB95)","v":""},null,null,null,null,null,null,null,{"$f":"IF(入力用!DJ95=\"\",\"\",入力用!DJ95)","v":""},null,null,null,null,null,null,null,{"$f":"IF(入力用!DR95=\"\",\"\",入力用!DR95)","v":""},null,null,null,null,null,null,null,{"$f":"IF(入力用!DZ95=\"\",\"\",入力用!DZ95)","v":""},null,null,null,null,null,null,null,{"$f":"IF(入力用!EH95=\"\",\"\",入力用!EH95)","v":""},null,null,null,null,null,null,null,{"$f":"IF(入力用!EP95=\"\",\"\",入力用!EP95)","v":""},null,null,null,null,null,null,null,{"$f":"IF(入力用!EX95=\"\",\"\",入力用!EX95)","v":""},null,null,null,null,null,null,null,{"$f":"IF(入力用!FF95=\"\",\"\",入力用!FF95)","v":""},null,null,null,null,null,null,null,{"$f":"IF(入力用!FN95=\"\",\"\",入力用!FN95)","v":""}]
[]
[]
[{"$f":"IF(入力用!A98=\"\",\"\",入力用!A98)","v":""}]
[]
[]
[]
[]
[]
[]
[]
[]
[null,null,null,null,null,null,null,null,null,null,null,null,null,null,null,null,null,null,null,null,null,null,null,null,null,null,null,null,null,null,null,null,null,null,null,null,null,null,null,null,null,null,null,null,null,null,"同上代理人",null,null,null,null,null,null,null,null,null,null,null,null,null,null,null,null,null,null,null,null,null,null,null,null,null,null,{"$f":"IF(入力用!BV107=\"\",\"\",入力用!BV107)","v":""}]
[]
[]
[]
[null,null,null,null,null,null,null,null,null,null,null,null,null,null,null,null,null,null,null,null,null,null,null,null,null,null,null,null,null,null,null,null,null,null,null,null,null,null,null,null,null,null,null,null,null,null,null,null,null,null,null,null,null,null,null,null,null,null,null,null,null,null,null,null,null,null,null,null,null,null,null,null,null,null,null,null,null,null,null,null,null,null,null,null,null,null,null,null,null,null,null,null,null,null,null,null,null,null,null,null,null,null,null,null,null,null,null,null,null,null,null,null,null,null,null,null,null,null,null,null,null,null,null,null,null,null,null,null,null,null,null,null,null,null,null,null,null,null,null,null,null,null,null,null,null,null,null,null,null,null,null,null,null,null,null,null,null,"㊞"]
[]
[]
[]
[]
[]
[]
[]
[]
[]
[]
[]
[null,"下記のとおり、令和元年10月１日現在における、紙巻たばこ三級品に係るたばこ税及びたばこ特別税の手持品課税"]
[]
[]
[]
[]
[]
[null,"納税申告書を提出します。"]
[]
[]
[]
[]
[]
[]
[null,"区　　　分",null,null,null,null,null,null,null,null,null,null,null,null,null,null,null,null,null,null,null,null,null,null,null,null,null,null,null,null,null,null,null,null,null,null,null,null,"所持する紙巻\nたばこ三級品の数量",null,null,null,null,null,null,null,null,null,null,null,null,null,null,null,null,null,null,null,null,null,null,null,null,null,null,null,null,null,null,null,"１本当た",null,null,null,null,null,null,null,null,null,null,null,null,"税額\n"]
[null,null,null,null,null,null,null,null,null,null,null,null,null,null,null,null,null,null,null,null,null,null,null,null,null,null,null,null,null,null,null,null,null,null,null,null,null,null,null,null,null,null,null,null,null,null,null,null,null,null,null,null,null,null,null,null,null,null,null,null,null,null,null,null,null,null,null,null,null,null,null,null,null,null,null,null,null,null,null,null,null,null,null,"税　　　額",null,null,null,null,null,null,null,null,null,null,null,null,null,null,null,null,null,null,null,null,null,null,null,null,null,null,null,null,null,"修正申告の場合の",null,null,null,null,null,null,null,null,null,null,null,null,null,null,null,null,null,null,null,null,null,null,null,null,null,null,null,null,null,null,"納付すべき税額"]
[]
[]
[]
[null,null,null,null,null,null,null,null,null,null,null,null,null,null,null,null,null,null,null,null,null,null,null,null,null,null,null,null,null,null,null,null,null,null,null,null,null,null,null,null,null,null,null,null,null,null,null,null,null,null,null,null,null,null,null,null,null,null,null,null,null,null,null,null,null,null,null,null,null,null,null,null,null,null,null,null,null,null,null,null,null,null,null,null,null,null,null,null,null,null,null,null,null,null,null,null,null,null,null,null,null,null,null,null,null,null,null,null,null,null,null,null,null,"修正申告前の確定額"]
[null,null,null,null,null,null,null,null,null,null,null,null,null,null,null,null,null,null,null,null,null,null,null,null,null,null,null,null,null,null,null,null,null,null,null,null,null,null,null,null,null,null,null,null,null,null,null,null,null,null,null,null,null,null,null,null,null,null,null,null,null,null,null,null,null,null,null,null,null,null,"りの税率"]
[]
[]
[null,null,null,null,null,null,null,null,null,null,null,null,null,null,null,null,null,null,null,null,null,null,null,null,null,null,null,null,null,null,null,null,null,null,null,null,null,null,null,null,null,null,null,null,null,null,null,null,null,null,null,null,null,null,null,null,null,null,null,null,null,null,null,null,null,null,null,null,null,null,null,null,null,null,null,null,null,null,null,null,null,null,null,"(100円未満切捨て)",null,null,null,null,null,null,null,null,null,null,null,null,null,null,null,null,null,null,null,null,null,null,null,null,null,null,null,null,null,"(100円単位で記入)",null,null,null,null,null,null,null,null,null,null,null,null,null,null,null,null,null,null,null,null,null,null,null,null,null,null,null,null,null,null,"(100円単位で記入)"]
[]
[]
[]
[null,null,null,null,null,null,null,null,null,null,null,null,null,null,null,null,null,null,null,null,null,null,null,null,null,null,null,null,null,null,null,null,null,null,null,null,null,"①",null,null,null,null,null,null,null,null,null,null,null,null,null,null,null,null,null,null,null,null,null,null,null,null,null,null,null,null,null,null,null,null,null,null,null,null,null,null,null,null,null,null,null,null,{"$f":"\"②（①×\"&BS152 &\"）\"","v":"②（①×1.966）"},null,null,null,null,null,null,null,null,null,null,null,null,null,null,null,null,null,null,null,null,null,null,null,null,null,null,null,null,null,"③",null,null,null,null,null,null,null,null,null,null,null,null,null,null,null,null,null,null,null,null,null,null,null,null,null,null,null,null,null,null,"④（②又は②－③）"]
[null,"たばこ税及び\nたばこ特別税"]
[]
[null,null,null,null,null,null,null,null,null,null,null,null,null,null,null,null,null,null,null,null,null,null,null,null,null,null,null,null,null,null,null,null,null,null,null,null,null,null,{"$f":"IF(入力用!AM152=\"\",\"\",入力用!AM152)","v":""},null,null,null,null,null,null,null,null,null,null,null,null,null,null,null,null,null,null,null,null,null,null,null,null,null,null,null,"本",null,null,null,1.966,null,null,null,null,null,null,null,null,null,null,null,null,{"$f":"IF(AM152=\"\",\"00\",ROUNDDOWN(AM152*BS152,-2))","v":"00"},null,null,null,null,null,null,null,null,null,null,null,null,null,null,null,null,null,null,null,null,null,null,null,null,null,"円",null,null,null,null,{"$f":"IF(入力用!DK152=\"\",\"\",入力用!DK152)","v":0},null,null,null,null,null,null,null,null,null,null,null,null,null,null,null,null,null,null,null,null,null,null,null,null,null,"円",null,null,null,null,{"$f":"IF(AM152=\"\",\"00\",IF(DK152=\"\",CF152,CF152-DK152))","v":"00"},null,null,null,null,null,null,null,null,null,null,null,null,null,null,null,null,null,null,null,null,null,null,null,null,null,null,null,"円"]
[]
[]
[]
[]
[]
[]
[]
[]
[]
[]
[]
[]
[]
[]
[]
[]
[]
[]
[]
[]
[]
[]
[]
[]
[]
[]
[]
[]
[]
[]
[]
[]
[]
[]
[]
[]
[]
[]
[]
[]
[]
[]
[]
[]
[]
[]
[]
[]
[]
[]
[]
[]
[]
[]
[]
[null,"出張販売\n先、自動\n販売機等\nの所在地\n及び名称",null,null,null,null,null,null,null,null,null,null,null,null,null,null,null,null,"所　　在　　地",null,null,null,null,null,null,null,null,null,null,null,null,null,null,null,null,null,null,null,null,null,null,null,null,null,null,null,null,null,null,null,null,null,null,null,null,null,null,null,null,null,null,null,null,null,null,null,null,null,null,null,null,null,null,null,null,null,null,null,null,null,null,null,null,null,null,null,null,null,null,null,null,null,null,null,null,null,null,null,null,null,null,null,null,null,null,null,null,null,null,null,null,null,null,null,null,null,null,null,null,null,null,null,null,"名　　称"]
[]
[]
[]
[]
[null,null,null,null,null,null,null,null,null,null,null,null,null,null,null,null,null,null,"（〒",null,null,null,null,{"$f":"IF(入力用!X213=\"\",\"\",入力用!X213)","v":""},null,null,null,null,null,"-",null,{"$f":"IF(入力用!AF213=\"\",\"\",入力用!AF213)","v":""},null,null,null,null,null,null,"）",null,null,"（電話番号",null,null,null,null,null,null,null,null,null,null,null,null,null,null,null,null,{"$f":"IF(入力用!BG213=\"\",\"\",入力用!BG213)","v":""},null,null,null,null,null,null,null,null,"-",null,null,{"$f":"IF(入力用!BS213=\"\",\"\",入力用!BS213)","v":""},null,null,null,null,null,null,null,null,null,null,null,null,null,"-",null,null,{"$f":"IF(入力用!CJ213=\"\",\"\",入力用!CJ213)","v":""},null,null,null,null,null,null,null,null,null,null,null,null,null,"）"]
[null,null,null,null,null,null,null,null,null,null,null,null,null,null,null,null,null,null,null,null,null,null,null,null,null,null,null,null,null,null,null,null,null,null,null,null,null,null,null,null,null,null,null,null,null,null,null,null,null,null,null,null,null,null,null,null,null,null,null,null,null,null,null,null,null,null,null,null,null,null,null,null,null,null,null,null,null,null,null,null,null,null,null,null,null,null,null,null,null,null,null,null,null,null,null,null,null,null,null,null,null,null,null,null,null,null,null,null,null,null,null,null,null,null,null,null,null,null,null,null,null,null,null,{"$f":"IF(入力用!DT214=\"\",\"\",入力用!DT214)","v":""}]
[]
[]
[]
[]
[null,null,null,null,null,null,null,null,null,null,null,null,null,null,null,null,null,null,{"$f":"IF(入力用!S219=\"\",\"\",入力用!S219)","v":""}]
[]
[]
[]
[]
[]
[null,null,null,null,null,null,null,null,null,null,null,null,null,null,null,null,null,null,"（〒",null,null,null,null,{"$f":"IF(入力用!X225=\"\",\"\",入力用!X225)","v":""},null,null,null,null,null,"-",null,{"$f":"IF(入力用!AF225=\"\",\"\",入力用!AF225)","v":""},null,null,null,null,null,null,"）",null,null,"（電話番号",null,null,null,null,null,null,null,null,null,null,null,null,null,null,null,null,{"$f":"IF(入力用!BG225=\"\",\"\",入力用!BG225)","v":""},null,null,null,null,null,null,null,null,"-",null,null,{"$f":"IF(入力用!BS225=\"\",\"\",入力用!BS225)","v":""},null,null,null,null,null,null,null,null,null,null,null,null,null,"-",null,null,{"$f":"IF(入力用!CJ225=\"\",\"\",入力用!CJ225)","v":""},null,null,null,null,null,null,null,null,null,null,null,null,null,"）"]
[null,null,null,null,null,null,null,null,null,null,null,null,null,null,null,null,null,null,null,null,null,null,null,null,null,null,null,null,null,null,null,null,null,null,null,null,null,null,null,null,null,null,null,null,null,null,null,null,null,null,null,null,null,null,null,null,null,null,null,null,null,null,null,null,null,null,null,null,null,null,null,null,null,null,null,null,null,null,null,null,null,null,null,null,null,null,null,null,null,null,null,null,null,null,null,null,null,null,null,null,null,null,null,null,null,null,null,null,null,null,null,null,null,null,null,null,null,null,null,null,null,null,null,{"$f":"IF(入力用!DT226=\"\",\"\",入力用!DT226)","v":""}]
[]
[]
[]
[]
[null,null,null,null,null,null,null,null,null,null,null,null,null,null,null,null,null,null,{"$f":"IF(入力用!S231=\"\",\"\",入力用!S231)","v":""}]
[]
[]
[]
[]
[null,null,null,null,null,null,null,null,null,null,null,null,null,null,null,null,null,null,null,null,null,null,null,null,null,null,null,null,null,null,null,null,null,null,null,null,null,null,null,null,null,null,null,null,null,null,null,null,null,null,null,null,null,null,null,null,null,null,null,null,null,null,null,null,null,null,null,null,null,null,null,null,null,null,null,null,null,null,null,null,null,null,null,null,"作成税理士署名・押印"]
[null,"税理士法第30条の書面提出"]
[]
[]
[]
[]
[]
[]
[null,"税理士法第33条の2の書面提出"]
[null,null,null,null,null,null,null,null,null,null,null,null,null,null,null,null,null,null,null,null,null,null,null,null,null,null,null,null,null,null,null,null,null,null,null,null,null,null,null,null,null,null,null,null,null,null,null,null,null,null,null,null,null,null,null,null,null,null,null,null,null,null,null,null,null,null,null,null,null,null,null,null,null,null,null,null,null,null,null,null,null,null,null,null,null,null,null,null,null,null,null,null,null,null,null,null,null,null,null,null,null,null,null,null,null,null,null,null,null,null,null,null,null,null,null,null,null,null,null,null,null,null,null,null,null,null,null,null,null,null,"㊞",null,null,null,null,"（電話番号",null,null,null,null,null,null,null,null,null,null,null,null,{"$f":"IF(入力用!ES245=\"\",\"\",入力用!ES245)","v":""},null,null,null,null,null,"-",null,{"$f":"IF(入力用!FA245=\"\",\"\",入力用!FA245)","v":""},null,null,null,null,null,null,null,"-",null,{"$f":"IF(入力用!FK245=\"\",\"\",入力用!FK245)","v":""},null,null,null,null,null,null,null,"）"]
[]
[]
[]
[]
[]
[null,"税　務　署　整　理　欄"]
[]
[]
[]
[]
[]
[null,null,null,null,null,null,null,null,null,null,null,null,null,null,null,null,null,null,null,null,null,null,null,null,null,null,null,null,null,null,null,null,null,null,null,null,null,null,null,null,null,null,null,null,null,null,null,null,null,null,null,null,null,null,null,"※",null,null,null,null,null,null,null,null,null,null,null,null,null,null,null,null,null,null,null,null,null,null,null,null,null,null,null,null,null,null,null,null,null,null,null,null,null,null,null,null,null,null,null,null,null,null,null,null,null,null,null,null,null,null,null,null,null,null,null,null,null,null,null,null,null,null,"※"]
[null,"修正申告の場合の当初申告年月日",null,null,null,null,null,null,null,null,null,null,null,null,null,null,null,null,null,null,null,null,null,null,null,null,null,null,null,null,null,null,null,null,null,null,null,null,null,null,null,null,null,null,null,null,null,null,null,null,null,null,null,null,null,null,null,null,null,"令和　　　年　　　月　　　日",null,null,null,null,null,null,null,null,null,null,null,null,null,null,null,null,null,null,null,null,null,null,null,null,null,null,null,null,null,null,null,null,null,null,null,null,null,null,null,null,null,null,null,null,null,null,null,null,null,null,null,null,null,"確認",null,null,null,null,null,null,null,null,null,null,null,null,null,null,null,null,null,null,null,null,null,null,null,null,null,null,null,null,null,null,null,null,"納期限"]
[]
[]
[]
[]
[]
[null,null,null,null,null,null,null,null,null,null,null,null,null,null,null,null,null,null,null,null,null,null,null,null,null,null,null,null,null,null,null,null,null,null,null,null,null,null,null,null,null,null,null,null,null,null,null,null,null,null,null,null,null,null,null,"※",null,null,null,null,null,null,null,null,null,null,null,null,null,null,null,null,null,null,null,null,null,null,null,null,null,null,null,null,null,null,null,null,null,null,null,null,null,null,null,null,null,null,null,null,null,null,null,null,null,null,null,null,null,null,null,null,null,null,null,null,null,null,null,null,null,null,"※"]
[null,"通信日付印",null,null,null,null,null,null,null,null,null,null,null,null,null,null,null,null,null,null,null,null,null,null,null,null,null,null,null,null,null,null,null,null,null,null,null,null,null,null,null,null,null,null,null,null,null,null,null,null,null,null,null,null,null,null,null,null,null,"令和　　　年　　　月　　　日",null,null,null,null,null,null,null,null,null,null,null,null,null,null,null,null,null,null,null,null,null,null,null,null,null,null,null,null,null,null,null,null,null,null,null,null,null,null,null,null,null,null,null,null,null,null,null,null,null,null,null,null,null,"確認",null,null,null,null,null,null,null,null,null,null,null,null,null,null,null,null,null,null,null,null,null,null,null,null,null,null,null,null,null,null,null,null,"2020-03-31"]
[]
[]
[]
[]
[]
[null,null,null,null,null,null,null,null,null,null,null,null,null,null,null,null,null,"※",null,null,null,null,null,null,null,null,null,null,null,null,null,null,null,null,null,null,null,null,null,null,null,null,null,null,null,"※",null,null,null,null,null,null,null,null,null,null,null,null,null,null,null,"※",null,null,null,null,null,"確認書類",null,null,null,null,null,null,null,null,null,null,null,null,null,null,null,null,null,null,null,null,null,null,null,null,null,null,null,null,null,null,null,null,null,null,null,null,null,null,null,null,null,null,null,null,null,null,null,null,null,null,null,null,null,null,null,null,null,null,null,null,null,null,null,null,null,null,null,null,null,null,null,null,"※"]
[null,"番号確認",null,null,null,null,null,null,null,null,null,null,null,null,null,null,null,null,null,null,null,null,null,null,null,null,null,null,null,null,"身元確認"]
[]
[null,null,null,null,null,null,null,null,null,null,null,null,null,null,null,null,null,null,null,null,null,null,null,null,null,null,null,null,null,null,null,null,null,null,null,null,null,null,null,null,null,null,null,null,null,null,null,null,null,null,null,null,null,null,"済"]
[null,null,null,null,null,null,null,null,null,null,null,null,null,null,null,null,null,null,null,null,null,null,null,null,null,null,null,null,null,null,null,null,null,null,null,null,null,null,null,null,null,null,null,null,null,null,null,null,null,null,null,null,null,null,null,null,null,null,null,null,null,null,null,null,null,null,null,null,null,"個人番号カード　／　通知カード・運転免許証"]
[]
[]
[null,null,null,null,null,null,null,null,null,null,null,null,null,null,null,null,null,null,null,null,null,null,null,null,null,null,null,null,null,null,null,null,null,null,null,null,null,null,null,null,null,null,null,null,null,null,null,null,null,null,null,null,null,null,"未済"]
[null,null,null,null,null,null,null,null,null,null,null,null,null,null,null,null,null,null,null,null,null,null,null,null,null,null,null,null,null,null,null,null,null,null,null,null,null,null,null,null,null,null,null,null,null,null,null,null,null,null,null,null,null,null,null,null,null,null,null,null,null,null,null,null,null,null,null,null,null,"その他（　　　　　　　　　　　　　　　　　）"]
[]
[]
[]
["（注）※欄には記入しないでください。"]

{"sheet":"都道府県用","index":3,"n_rows":283,"n_cols":179,"rows_kept":283,"cut":false,"hidden":false,"merged":[[16,29,22,154],[25,72,28,75],[25,149,28,152],[26,93,32,114],[26,124,32,127],[26,137,32,147],[29,7,32,19],[26,117,29,123],[26,128,29,134],[30,117,32,123],[30,128,32,134],[34,91,39,95],[34,96,39,111],[34,112,39,117],[35,38,57,70],[41,73,49,174],[55,126,58,134],[55,135,58,137],[55,138,58,151],[55,152,58,154],[55,155,58,168],[38,1,42,6],[38,7,42,11],[38,12,42,16],[38,17,42,21],[38,22,42,26],[38,27,42,31],[38,32,42,36],[59,72,64,79],[59,80,64,90],[34,72,39,79],[34,80,39,90],[59,91,64,95],[59,96,64,111],[59,112,64,117],[60,38,119,43],[60,46,72,70],[65,73,69,174],[50,108,54,125],[50,126,54,168],[50,169,54,173],[55,105,58,125],[55,169,58,173],[94,137,103,142],[94,145,103,150],[94,153,103,158],[94,161,103,166],[94,169,103,174],[90,81,93,174],[91,46,103,70],[94,73,103,78],[94,81,103,86],[94,89,103,94],[94,97,103,102],[110,157,115,163],[70,106,73,125],[77,0,85,19],[80,73,85,156],[80,157,85,163],[82,20,85,36],[86,105,89,125],[86,126,89,168],[70,169,73,173],[74,72,79,97],[74,98,77,175],[75,46,88,70],[86,169,89,173],[70,126,73,134],[70,135,73,137],[70,138,73,151],[70,152,73,154],[70,155,73,168],[169,70,174,80],[172,83,175,110],[172,113,175,141],[172,144,175,174],[176,37,178,39],[176,82,178,111],[176,112,178,141],[176,143,178,172],[163,1,174,35],[163,38,174,67],[163,70,168,80],[164,83,171,110],[164,113,171,141],[164,144,171,174],[94,105,103,110],[94,113,103,118],[94,121,103,126],[94,129,103,134],[148,37,150,39],[151,38,160,65],[151,66,153,68],[106,46,119,70],[106,73,119,156],[122,1,126,174],[128,1,132,174],[135,38,146,67],[224,101,227,105],[225,123,233,174],[230,18,233,120],[179,114,189,139],[179,140,181,142],[179,145,189,172],[179,173,181,175],[177,1,204,35],[177,70,189,80],[179,38,204,65],[179,66,181,68],[179,83,189,108],[179,109,181,111],[212,23,215,28],[212,29,215,30],[212,31,215,37],[224,23,227,28],[224,29,227,30],[224,31,227,37],[212,58,215,66],[264,146,268,172],[244,135,248,147],[244,174,248,175],[250,1,254,174],[256,55,259,58],[256,122,259,125],[257,1,261,53],[257,59,261,110],[257,113,261,120],[257,146,261,172],[240,85,246,128],[243,1,247,73],[243,77,247,81],[244,130,247,133],[244,156,248,163],[244,154,248,155],[244,148,248,153],[244,166,248,173],[244,164,248,165],[271,1,280,15],[271,30,280,43],[273,54,275,59],[274,69,277,136],[277,50,278,51],[263,55,266,58],[263,122,266,125],[264,1,268,53],[264,59,268,110],[264,113,268,120],[277,173,281,175],[278,69,281,136],[282,0,285,74],[62,178,96,183],[134,0,161,36],[134,69,161,175],[191,69,205,175],[277,155,281,157],[277,158,281,160],[277,161,281,163],[277,164,281,166],[277,167,281,169],[277,170,281,172],[277,54,279,59],[277,140,281,142],[277,143,281,145],[277,146,281,148],[277,149,281,151],[277,152,281,154],[270,17,273,20],[270,45,273,48],[270,61,273,64],[270,67,273,77],[270,140,273,143],[235,84,239,121],[236,1,240,73],[236,77,240,81],[207,1,233,15],[207,18,210,120],[207,123,210,174],[212,41,215,57],[212,101,215,105],[213,123,222,174],[218,18,222,120],[224,18,227,22],[224,38,227,40],[224,41,227,57],[212,18,215,22],[212,67,215,69],[212,70,215,83],[212,84,215,86],[224,58,227,66],[224,67,227,69],[224,70,227,83],[224,84,227,86],[224,87,227,100],[212,87,215,100],[212,38,215,40]]}
[]
[]
[]
[]
[]
[]
[]
[]
[]
[]
[]
[]
[]
[]
[]
[]
[null,null,null,null,null,null,null,null,null,null,null,null,null,null,null,null,null,null,null,null,null,null,null,null,null,null,null,null,null,"道府県たばこ税の手持品課税納税申告書"]
[]
[]
[]
[]
[]
[]
[]
[]
[null,null,null,null,null,null,null,null,null,null,null,null,null,null,null,null,null,null,null,null,null,null,null,null,null,null,null,null,null,null,null,null,null,null,null,null,null,null,null,null,null,null,null,null,null,null,null,null,null,null,null,null,null,null,null,null,null,null,null,null,null,null,null,null,null,null,null,null,null,null,null,null,"※",null,null,null,null,null,null,null,null,null,null,null,null,null,null,null,null,null,null,null,null,null,null,null,null,null,null,null,null,null,null,null,null,null,null,null,null,null,null,null,null,null,null,null,null,null,null,null,null,null,null,null,null,null,null,null,null,null,null,null,null,null,null,null,null,null,null,null,null,null,null,null,null,null,null,null,null,"※"]
[null,null,null,null,null,null,null,null,null,null,null,null,null,null,null,null,null,null,null,null,null,null,null,null,null,null,null,null,null,null,null,null,null,null,null,null,null,null,null,null,null,null,null,null,null,null,null,null,null,null,null,null,null,null,null,null,null,null,null,null,null,null,null,null,null,null,null,null,null,null,null,null,null,null,null,null,null,null,null,null,null,null,null,null,null,null,null,null,null,null,null,null,null,"申告者の種別",null,null,null,null,null,null,null,null,null,null,null,null,null,null,null,null,null,null,null,null,null,null,null,"小",null,null,null,null,null,null,"・",null,null,null,"卸",null,null,null,null,null,null,null,null,"整理番号"]
[]
[]
[null,null,null,null,null,null,null,"収受印"]
[]
[]
[]
[]
[null,null,null,null,null,null,null,null,null,null,null,null,null,null,null,null,null,null,null,null,null,null,null,null,null,null,null,null,null,null,null,null,null,null,null,null,null,null,null,null,null,null,null,null,null,null,null,null,null,null,null,null,null,null,null,null,null,null,null,null,null,null,null,null,null,null,null,null,null,null,null,null,"（〒",null,null,null,null,null,null,null,{"$f":"IF(入力用!CC35=\"\",\"\",入力用!CC35)","v":""},null,null,null,null,null,null,null,null,null,null,"-",null,null,null,null,{"$f":"IF(入力用!CS35=\"\",\"\",入力用!CS35)","v":""},null,null,null,null,null,null,null,null,null,null,null,null,null,null,null,")"]
[null,null,null,null,null,null,null,null,null,null,null,null,null,null,null,null,null,null,null,null,null,null,null,null,null,null,null,null,null,null,null,null,null,null,null,null,null,null,"営業所又は貯蔵場所\nの所在地及び名称"]
[]
[]
[null,"令和",null,null,null,null,null,{"$f":"IF(入力用!H39=\"\",\"\",入力用!H39)","v":""},null,null,null,null,"年",null,null,null,null,{"$f":"IF(入力用!R39=\"\",\"\",入力用!R39)","v":""},null,null,null,null,"月",null,null,null,null,{"$f":"IF(入力用!AB39=\"\",\"\",入力用!AB39)","v":""},null,null,null,null,"日"]
[]
[]
[null,null,null,null,null,null,null,null,null,null,null,null,null,null,null,null,null,null,null,null,null,null,null,null,null,null,null,null,null,null,null,null,null,null,null,null,null,null,null,null,null,null,null,null,null,null,null,null,null,null,null,null,null,null,null,null,null,null,null,null,null,null,null,null,null,null,null,null,null,null,null,null,null,{"$f":"IF(入力用!BV42=\"\",\"\",入力用!BV42)","v":""}]
[]
[]
[]
[]
[]
[]
[]
[]
[null,null,null,null,null,null,null,null,null,null,null,null,null,null,null,null,null,null,null,null,null,null,null,null,null,null,null,null,null,null,null,null,null,null,null,null,null,null,null,null,null,null,null,null,null,null,null,null,null,null,null,null,null,null,null,null,null,null,null,null,null,null,null,null,null,null,null,null,null,null,null,null,null,null,null,null,null,null,null,null,null,null,null,null,null,null,null,null,null,null,null,null,null,null,null,null,null,null,null,null,null,null,null,null,null,null,null,null,"店舗名（",null,null,null,null,null,null,null,null,null,null,null,null,null,null,null,null,null,{"$f":"IF(入力用!DW51=\"\",\"\",入力用!DW51)","v":""},null,null,null,null,null,null,null,null,null,null,null,null,null,null,null,null,null,null,null,null,null,null,null,null,null,null,null,null,null,null,null,null,null,null,null,null,null,null,null,null,null,null,"）"]
[]
[]
[]
[]
[null,null,null,null,null,null,null,null,null,null,null,null,null,null,null,null,null,null,null,null,null,null,null,null,null,null,null,null,null,null,null,null,null,null,null,null,null,null,null,null,null,null,null,null,null,null,null,null,null,null,null,null,null,null,null,null,null,null,null,null,null,null,null,null,null,null,null,null,null,null,null,null,null,null,null,null,null,null,null,null,null,null,null,null,null,null,null,null,null,null,null,null,null,null,null,null,null,null,null,null,null,null,null,null,null,"（電話番号",null,null,null,null,null,null,null,null,null,null,null,null,null,null,null,null,null,null,null,null,{"$f":"IF(入力用!DW56=\"\",\"\",入力用!DW56)","v":""},null,null,null,null,null,null,null,null,"-",null,null,{"$f":"IF(入力用!EI56=\"\",\"\",入力用!EI56)","v":""},null,null,null,null,null,null,null,null,null,null,null,null,null,"-",null,null,{"$f":"IF(入力用!EZ56=\"\",\"\",入力用!EZ56)","v":""},null,null,null,null,null,null,null,null,null,null,null,null,null,"）"]
[]
[{"$f":"IF(入力用!A58=\"\",\"\",入力用!A58)","v":""}]
[]
[null,null,null,null,null,null,null,null,null,null,null,null,null,null,null,null,null,null,null,null,null,null,null,null,null,null,null,null,null,null,null,null,null,null,null,null,null,null,null,null,null,null,null,null,null,null,null,null,null,null,null,null,null,null,null,null,null,null,null,null,null,null,null,null,null,null,null,null,null,null,null,null,"（〒",null,null,null,null,null,null,null,{"$f":"IF(入力用!CC60=\"\",\"\",入力用!CC60)","v":""},null,null,null,null,null,null,null,null,null,null,"-",null,null,null,null,{"$f":"IF(入力用!CS60=\"\",\"\",入力用!CS60)","v":""},null,null,null,null,null,null,null,null,null,null,null,null,null,null,null,")"]
[null,null,null,null,null,null,null,null,null,null,null,null,null,null,null,null,null,null,null,null,null,null,null,null,null,null,null,null,null,null,null,null,null,null,null,null,null,null,"申　　告　　者",null,null,null,null,null,null,null,"住所"]
[]
[null,null,null,null,null,null,null,null,null,null,null,null,null,null,null,null,null,null,null,null,null,null,null,null,null,null,null,null,null,null,null,null,null,null,null,null,null,null,null,null,null,null,null,null,null,null,null,null,null,null,null,null,null,null,null,null,null,null,null,null,null,null,null,null,null,null,null,null,null,null,null,null,null,null,null,null,null,null,null,null,null,null,null,null,null,null,null,null,null,null,null,null,null,null,null,null,null,null,null,null,null,null,null,null,null,null,null,null,null,null,null,null,null,null,null,null,null,null,null,null,null,null,null,null,null,null,null,null,null,null,null,null,null,null,null,null,null,null,null,null,null,null,null,null,null,null,null,null,null,null,null,null,null,null,null,null,null,null,null,null,null,null,null,null,null,null,null,null,null,null,null,null,null,null,null,null,null,null,"  （第一号様式）"]
[]
[]
[null,null,null,null,null,null,null,null,null,null,null,null,null,null,null,null,null,null,null,null,null,null,null,null,null,null,null,null,null,null,null,null,null,null,null,null,null,null,null,null,null,null,null,null,null,null,null,null,null,null,null,null,null,null,null,null,null,null,null,null,null,null,null,null,null,null,null,null,null,null,null,null,null,{"$f":"IF(入力用!BV66=\"\",\"\",入力用!BV66)","v":""}]
[]
[]
[]
[]
[null,null,null,null,null,null,null,null,null,null,null,null,null,null,null,null,null,null,null,null,null,null,null,null,null,null,null,null,null,null,null,null,null,null,null,null,null,null,null,null,null,null,null,null,null,null,null,null,null,null,null,null,null,null,null,null,null,null,null,null,null,null,null,null,null,null,null,null,null,null,null,null,null,null,null,null,null,null,null,null,null,null,null,null,null,null,null,null,null,null,null,null,null,null,null,null,null,null,null,null,null,null,null,null,null,null,"（電話番号",null,null,null,null,null,null,null,null,null,null,null,null,null,null,null,null,null,null,null,{"$f":"IF(入力用!DW71=\"\",\"\",入力用!DW71)","v":""},null,null,null,null,null,null,null,null,"-",null,null,{"$f":"IF(入力用!EI71=\"\",\"\",入力用!EI71)","v":""},null,null,null,null,null,null,null,null,null,null,null,null,null,"-",null,null,{"$f":"IF(入力用!EZ71=\"\",\"\",入力用!EZ71)","v":""},null,null,null,null,null,null,null,null,null,null,null,null,null,"）"]
[]
[]
[]
[null,null,null,null,null,null,null,null,null,null,null,null,null,null,null,null,null,null,null,null,null,null,null,null,null,null,null,null,null,null,null,null,null,null,null,null,null,null,null,null,null,null,null,null,null,null,null,null,null,null,null,null,null,null,null,null,null,null,null,null,null,null,null,null,null,null,null,null,null,null,null,null,"（フリガナ）",null,null,null,null,null,null,null,null,null,null,null,null,null,null,null,null,null,null,null,null,null,null,null,null,null,{"$f":"IF(入力用!CU75=\"\",\"\",入力用!CU75)","v":""}]
[null,null,null,null,null,null,null,null,null,null,null,null,null,null,null,null,null,null,null,null,null,null,null,null,null,null,null,null,null,null,null,null,null,null,null,null,null,null,null,null,null,null,null,null,null,null,"氏名又は名称\n及び代表者氏名"]
[]
[{"$f":"IF(入力用!A78=\"\",\"\",入力用!A78)","v":""}]
[]
[]
[null,null,null,null,null,null,null,null,null,null,null,null,null,null,null,null,null,null,null,null,null,null,null,null,null,null,null,null,null,null,null,null,null,null,null,null,null,null,null,null,null,null,null,null,null,null,null,null,null,null,null,null,null,null,null,null,null,null,null,null,null,null,null,null,null,null,null,null,null,null,null,null,null,{"$f":"IF(入力用!BV81=\"\",\"\",入力用!BV81)","v":""},null,null,null,null,null,null,null,null,null,null,null,null,null,null,null,null,null,null,null,null,null,null,null,null,null,null,null,null,null,null,null,null,null,null,null,null,null,null,null,null,null,null,null,null,null,null,null,null,null,null,null,null,null,null,null,null,null,null,null,null,null,null,null,null,null,null,null,null,null,null,null,null,null,null,null,null,null,null,null,null,null,null,null,"㊞"]
[]
[null,null,null,null,null,null,null,null,null,null,null,null,null,null,null,null,null,null,null,null,"知事殿"]
[]
[]
[]
[]
[]
[]
[]
[null,null,null,null,null,null,null,null,null,null,null,null,null,null,null,null,null,null,null,null,null,null,null,null,null,null,null,null,null,null,null,null,null,null,null,null,null,null,null,null,null,null,null,null,null,null,null,null,null,null,null,null,null,null,null,null,null,null,null,null,null,null,null,null,null,null,null,null,null,null,null,null,null,null,null,null,null,null,null,null,null," ↓個人番号の記載に当たっては、左端を空欄とし、ここから記載してください。"]
[null,null,null,null,null,null,null,null,null,null,null,null,null,null,null,null,null,null,null,null,null,null,null,null,null,null,null,null,null,null,null,null,null,null,null,null,null,null,null,null,null,null,null,null,null,null,"個人番号又は\n法人番号"]
[]
[]
[null,null,null,null,null,null,null,null,null,null,null,null,null,null,null,null,null,null,null,null,null,null,null,null,null,null,null,null,null,null,null,null,null,null,null,null,null,null,null,null,null,null,null,null,null,null,null,null,null,null,null,null,null,null,null,null,null,null,null,null,null,null,null,null,null,null,null,null,null,null,null,null,null,{"$f":"IF(入力用!BV95=\"\",\"\",入力用!BV95)","v":""},null,null,null,null,null,null,null,{"$f":"IF(入力用!CD95=\"\",\"\",入力用!CD95)","v":""},null,null,null,null,null,null,null,{"$f":"IF(入力用!CL95=\"\",\"\",入力用!CL95)","v":""},null,null,null,null,null,null,null,{"$f":"IF(入力用!CT95=\"\",\"\",入力用!CT95)","v":""},null,null,null,null,null,null,null,{"$f":"IF(入力用!DB95=\"\",\"\",入力用!DB95)","v":""},null,null,null,null,null,null,null,{"$f":"IF(入力用!DJ95=\"\",\"\",入力用!DJ95)","v":""},null,null,null,null,null,null,null,{"$f":"IF(入力用!DR95=\"\",\"\",入力用!DR95)","v":""},null,null,null,null,null,null,null,{"$f":"IF(入力用!DZ95=\"\",\"\",入力用!DZ95)","v":""},null,null,null,null,null,null,null,{"$f":"IF(入力用!EH95=\"\",\"\",入力用!EH95)","v":""},null,null,null,null,null,null,null,{"$f":"IF(入力用!EP95=\"\",\"\",入力用!EP95)","v":""},null,null,null,null,null,null,null,{"$f":"IF(入力用!EX95=\"\",\"\",入力用!EX95)","v":""},null,null,null,null,null,null,null,{"$f":"IF(入力用!FF95=\"\",\"\",入力用!FF95)","v":""},null,null,null,null,null,null,null,{"$f":"IF(入力用!FN95=\"\",\"\",入力用!FN95)","v":""}]
[]
[]
[]
[]
[]
[]
[]
[]
[]
[]
[]
[null,null,null,null,null,null,null,null,null,null,null,null,null,null,null,null,null,null,null,null,null,null,null,null,null,null,null,null,null,null,null,null,null,null,null,null,null,null,null,null,null,null,null,null,null,null,"同上代理人",null,null,null,null,null,null,null,null,null,null,null,null,null,null,null,null,null,null,null,null,null,null,null,null,null,null,{"$f":"IF(入力用!BV107=\"\",\"\",入力用!BV107)","v":""}]
[]
[]
[]
[null,null,null,null,null,null,null,null,null,null,null,null,null,null,null,null,null,null,null,null,null,null,null,null,null,null,null,null,null,null,null,null,null,null,null,null,null,null,null,null,null,null,null,null,null,null,null,null,null,null,null,null,null,null,null,null,null,null,null,null,null,null,null,null,null,null,null,null,null,null,null,null,null,null,null,null,null,null,null,null,null,null,null,null,null,null,null,null,null,null,null,null,null,null,null,null,null,null,null,null,null,null,null,null,null,null,null,null,null,null,null,null,null,null,null,null,null,null,null,null,null,null,null,null,null,null,null,null,null,null,null,null,null,null,null,null,null,null,null,null,null,null,null,null,null,null,null,null,null,null,null,null,null,null,null,null,null,"㊞"]
[]
[]
[]
[]
[]
[]
[]
[]
[]
[]
[]
[null,"下記のとおり、令和元年10月１日現在における、紙巻たばこ三級品に係る道府県たばこ税の手持品課税"]
[]
[]
[]
[]
[]
[null,"納税申告書を提出します。"]
[]
[]
[]
[]
[]
[]
[null,null,null,null,null,null,null,null,null,null,null,null,null,null,null,null,null,null,null,null,null,null,null,null,null,null,null,null,null,null,null,null,null,null,null,null,null,null,"所持する紙巻\nたばこ三級品の数量"]
[]
[]
[]
[]
[]
[]
[]
[]
[]
[]
[]
[]
[null,null,null,null,null,null,null,null,null,null,null,null,null,null,null,null,null,null,null,null,null,null,null,null,null,null,null,null,null,null,null,null,null,null,null,null,null,"①"]
[]
[]
[null,null,null,null,null,null,null,null,null,null,null,null,null,null,null,null,null,null,null,null,null,null,null,null,null,null,null,null,null,null,null,null,null,null,null,null,null,null,{"$f":"IF(入力用!AM152=\"\",\"\",入力用!AM152)","v":""},null,null,null,null,null,null,null,null,null,null,null,null,null,null,null,null,null,null,null,null,null,null,null,null,null,null,null,"本"]
[]
[]
[]
[]
[]
[]
[]
[]
[]
[]
[]
[null,"区　　　分",null,null,null,null,null,null,null,null,null,null,null,null,null,null,null,null,null,null,null,null,null,null,null,null,null,null,null,null,null,null,null,null,null,null,null,null,"課税標準となる紙巻\nたばこ三級品の本数",null,null,null,null,null,null,null,null,null,null,null,null,null,null,null,null,null,null,null,null,null,null,null,null,null,null,null,null,null,null,null,"１本当た"]
[null,null,null,null,null,null,null,null,null,null,null,null,null,null,null,null,null,null,null,null,null,null,null,null,null,null,null,null,null,null,null,null,null,null,null,null,null,null,null,null,null,null,null,null,null,null,null,null,null,null,null,null,null,null,null,null,null,null,null,null,null,null,null,null,null,null,null,null,null,null,null,null,null,null,null,null,null,null,null,null,null,null,null,"税　　　額",null,null,null,null,null,null,null,null,null,null,null,null,null,null,null,null,null,null,null,null,null,null,null,null,null,null,null,null,null,"修正申告の場合の\n修正申告前の確定額",null,null,null,null,null,null,null,null,null,null,null,null,null,null,null,null,null,null,null,null,null,null,null,null,null,null,null,null,null,null,"納付すべき税額"]
[]
[]
[]
[]
[null,null,null,null,null,null,null,null,null,null,null,null,null,null,null,null,null,null,null,null,null,null,null,null,null,null,null,null,null,null,null,null,null,null,null,null,null,null,null,null,null,null,null,null,null,null,null,null,null,null,null,null,null,null,null,null,null,null,null,null,null,null,null,null,null,null,null,null,null,null,"りの税率"]
[]
[]
[null,null,null,null,null,null,null,null,null,null,null,null,null,null,null,null,null,null,null,null,null,null,null,null,null,null,null,null,null,null,null,null,null,null,null,null,null,null,null,null,null,null,null,null,null,null,null,null,null,null,null,null,null,null,null,null,null,null,null,null,null,null,null,null,null,null,null,null,null,null,null,null,null,null,null,null,null,null,null,null,null,null,null,"(1円未満切捨て)",null,null,null,null,null,null,null,null,null,null,null,null,null,null,null,null,null,null,null,null,null,null,null,null,null,null,null,null,null,"(1円単位で記入)",null,null,null,null,null,null,null,null,null,null,null,null,null,null,null,null,null,null,null,null,null,null,null,null,null,null,null,null,null,null,"(1円単位で記入)"]
[]
[]
[]
[null,null,null,null,null,null,null,null,null,null,null,null,null,null,null,null,null,null,null,null,null,null,null,null,null,null,null,null,null,null,null,null,null,null,null,null,null,"⑤",null,null,null,null,null,null,null,null,null,null,null,null,null,null,null,null,null,null,null,null,null,null,null,null,null,null,null,null,null,null,null,null,null,null,null,null,null,null,null,null,null,null,null,null,{"$f":"\"⑥（⑤×\"&BS178 &\"）\"","v":"⑥（⑤×0.274）"},null,null,null,null,null,null,null,null,null,null,null,null,null,null,null,null,null,null,null,null,null,null,null,null,null,null,null,null,null,"⑦",null,null,null,null,null,null,null,null,null,null,null,null,null,null,null,null,null,null,null,null,null,null,null,null,null,null,null,null,null,null,"⑧（⑥又は⑥－⑦）"]
[null,"道府県税",null,null,null,null,null,null,null,null,null,null,null,null,null,null,null,null,null,null,null,null,null,null,null,null,null,null,null,null,null,null,null,null,null,null,null,null,null,null,null,null,null,null,null,null,null,null,null,null,null,null,null,null,null,null,null,null,null,null,null,null,null,null,null,null,null,null,null,null,0.27400000000000002]
[]
[null,null,null,null,null,null,null,null,null,null,null,null,null,null,null,null,null,null,null,null,null,null,null,null,null,null,null,null,null,null,null,null,null,null,null,null,null,null,{"$f":"IF(入力用!AM180=\"\",\"\",入力用!AM180)","v":""},null,null,null,null,null,null,null,null,null,null,null,null,null,null,null,null,null,null,null,null,null,null,null,null,null,null,null,"本",null,null,null,null,null,null,null,null,null,null,null,null,null,null,null,null,{"$f":"IF(AM180=\"\",\"\",ROUNDDOWN(AM180*BS178,0))","v":""},null,null,null,null,null,null,null,null,null,null,null,null,null,null,null,null,null,null,null,null,null,null,null,null,null,"円",null,null,null,null,{"$f":"IF(入力用!DK180=\"\",\"\",入力用!DK180)","v":0},null,null,null,null,null,null,null,null,null,null,null,null,null,null,null,null,null,null,null,null,null,null,null,null,null,"円",null,null,null,null,{"$f":"IF(AM180=\"\",\"\",IF(DK180=\"\",CF180,CF180-DK180))","v":""},null,null,null,null,null,null,null,null,null,null,null,null,null,null,null,null,null,null,null,null,null,null,null,null,null,null,null,"円"]
[]
[]
[]
[]
[]
[]
[]
[]
[]
[]
[]
[]
[]
[]
[]
[]
[]
[]
[]
[]
[]
[]
[]
[]
[]
[]
[]
[null,"出張販売\n先、自動\n販売機等\nの所在地\n及び名称",null,null,null,null,null,null,null,null,null,null,null,null,null,null,null,null,"所　　在　　地",null,null,null,null,null,null,null,null,null,null,null,null,null,null,null,null,null,null,null,null,null,null,null,null,null,null,null,null,null,null,null,null,null,null,null,null,null,null,null,null,null,null,null,null,null,null,null,null,null,null,null,null,null,null,null,null,null,null,null,null,null,null,null,null,null,null,null,null,null,null,null,null,null,null,null,null,null,null,null,null,null,null,null,null,null,null,null,null,null,null,null,null,null,null,null,null,null,null,null,null,null,null,null,null,"名　　称"]
[]
[]
[]
[]
[null,null,null,null,null,null,null,null,null,null,null,null,null,null,null,null,null,null,"（〒",null,null,null,null,{"$f":"IF(入力用!X213=\"\",\"\",入力用!X213)","v":""},null,null,null,null,null,"-",null,{"$f":"IF(入力用!AF213=\"\",\"\",入力用!AF213)","v":""},null,null,null,null,null,null,"）",null,null,"（電話番号",null,null,null,null,null,null,null,null,null,null,null,null,null,null,null,null,{"$f":"IF(入力用!BG213=\"\",\"\",入力用!BG213)","v":""},null,null,null,null,null,null,null,null,"-",null,null,{"$f":"IF(入力用!BS213=\"\",\"\",入力用!BS213)","v":""},null,null,null,null,null,null,null,null,null,null,null,null,null,"-",null,null,{"$f":"IF(入力用!CJ213=\"\",\"\",入力用!CJ213)","v":""},null,null,null,null,null,null,null,null,null,null,null,null,null,"）"]
[null,null,null,null,null,null,null,null,null,null,null,null,null,null,null,null,null,null,null,null,null,null,null,null,null,null,null,null,null,null,null,null,null,null,null,null,null,null,null,null,null,null,null,null,null,null,null,null,null,null,null,null,null,null,null,null,null,null,null,null,null,null,null,null,null,null,null,null,null,null,null,null,null,null,null,null,null,null,null,null,null,null,null,null,null,null,null,null,null,null,null,null,null,null,null,null,null,null,null,null,null,null,null,null,null,null,null,null,null,null,null,null,null,null,null,null,null,null,null,null,null,null,null,{"$f":"IF(入力用!DT214=\"\",\"\",入力用!DT214)","v":""}]
[]
[]
[]
[]
[null,null,null,null,null,null,null,null,null,null,null,null,null,null,null,null,null,null,{"$f":"IF(入力用!S219=\"\",\"\",入力用!S219)","v":""}]
[]
[]
[]
[]
[]
[null,null,null,null,null,null,null,null,null,null,null,null,null,null,null,null,null,null,"（〒",null,null,null,null,{"$f":"IF(入力用!X225=\"\",\"\",入力用!X225)","v":""},null,null,null,null,null,"-",null,{"$f":"IF(入力用!AF225=\"\",\"\",入力用!AF225)","v":""},null,null,null,null,null,null,"）",null,null,"（電話番号",null,null,null,null,null,null,null,null,null,null,null,null,null,null,null,null,{"$f":"IF(入力用!BG225=\"\",\"\",入力用!BG225)","v":""},null,null,null,null,null,null,null,null,"-",null,null,{"$f":"IF(入力用!BS225=\"\",\"\",入力用!BS225)","v":""},null,null,null,null,null,null,null,null,null,null,null,null,null,"-",null,null,{"$f":"IF(入力用!CJ225=\"\",\"\",入力用!CJ225)","v":""},null,null,null,null,null,null,null,null,null,null,null,null,null,"）"]
[null,null,null,null,null,null,null,null,null,null,null,null,null,null,null,null,null,null,null,null,null,null,null,null,null,null,null,null,null,null,null,null,null,null,null,null,null,null,null,null,null,null,null,null,null,null,null,null,null,null,null,null,null,null,null,null,null,null,null,null,null,null,null,null,null,null,null,null,null,null,null,null,null,null,null,null,null,null,null,null,null,null,null,null,null,null,null,null,null,null,null,null,null,null,null,null,null,null,null,null,null,null,null,null,null,null,null,null,null,null,null,null,null,null,null,null,null,null,null,null,null,null,null,{"$f":"IF(入力用!DT226=\"\",\"\",入力用!DT226)","v":""}]
[]
[]
[]
[]
[null,null,null,null,null,null,null,null,null,null,null,null,null,null,null,null,null,null,{"$f":"IF(入力用!S231=\"\",\"\",入力用!S231)","v":""}]
[]
[]
[]
[]
[null,null,null,null,null,null,null,null,null,null,null,null,null,null,null,null,null,null,null,null,null,null,null,null,null,null,null,null,null,null,null,null,null,null,null,null,null,null,null,null,null,null,null,null,null,null,null,null,null,null,null,null,null,null,null,null,null,null,null,null,null,null,null,null,null,null,null,null,null,null,null,null,null,null,null,null,null,null,null,null,null,null,null,null,"作成税理士署名・押印"]
[null,"税理士法第30条の書面提出"]
[]
[]
[]
[]
[]
[]
[null,"税理士法第33条の2の書面提出"]
[null,null,null,null,null,null,null,null,null,null,null,null,null,null,null,null,null,null,null,null,null,null,null,null,null,null,null,null,null,null,null,null,null,null,null,null,null,null,null,null,null,null,null,null,null,null,null,null,null,null,null,null,null,null,null,null,null,null,null,null,null,null,null,null,null,null,null,null,null,null,null,null,null,null,null,null,null,null,null,null,null,null,null,null,null,null,null,null,null,null,null,null,null,null,null,null,null,null,null,null,null,null,null,null,null,null,null,null,null,null,null,null,null,null,null,null,null,null,null,null,null,null,null,null,null,null,null,null,null,null,"㊞",null,null,null,null,"（電話番号",null,null,null,null,null,null,null,null,null,null,null,null,{"$f":"IF(入力用!ES245=\"\",\"\",入力用!ES245)","v":""},null,null,null,null,null,"-",null,{"$f":"IF(入力用!FA245=\"\",\"\",入力用!FA245)","v":""},null,null,null,null,null,null,null,"-",null,{"$f":"IF(入力用!FK245=\"\",\"\",入力用!FK245)","v":""},null,null,null,null,null,null,null,"）"]
[]
[]
[]
[]
[]
[null,"都　道　府　県　整　理　欄"]
[]
[]
[]
[]
[]
[null,null,null,null,null,null,null,null,null,null,null,null,null,null,null,null,null,null,null,null,null,null,null,null,null,null,null,null,null,null,null,null,null,null,null,null,null,null,null,null,null,null,null,null,null,null,null,null,null,null,null,null,null,null,null,"※",null,null,null,null,null,null,null,null,null,null,null,null,null,null,null,null,null,null,null,null,null,null,null,null,null,null,null,null,null,null,null,null,null,null,null,null,null,null,null,null,null,null,null,null,null,null,null,null,null,null,null,null,null,null,null,null,null,null,null,null,null,null,null,null,null,null,"※"]
[null,"修正申告の場合の当初申告年月日",null,null,null,null,null,null,null,null,null,null,null,null,null,null,null,null,null,null,null,null,null,null,null,null,null,null,null,null,null,null,null,null,null,null,null,null,null,null,null,null,null,null,null,null,null,null,null,null,null,null,null,null,null,null,null,null,null,"令和　　　年　　　月　　　日",null,null,null,null,null,null,null,null,null,null,null,null,null,null,null,null,null,null,null,null,null,null,null,null,null,null,null,null,null,null,null,null,null,null,null,null,null,null,null,null,null,null,null,null,null,null,null,null,null,null,null,null,null,"確認",null,null,null,null,null,null,null,null,null,null,null,null,null,null,null,null,null,null,null,null,null,null,null,null,null,null,null,null,null,null,null,null,"納期限"]
[]
[]
[]
[]
[]
[null,null,null,null,null,null,null,null,null,null,null,null,null,null,null,null,null,null,null,null,null,null,null,null,null,null,null,null,null,null,null,null,null,null,null,null,null,null,null,null,null,null,null,null,null,null,null,null,null,null,null,null,null,null,null,"※",null,null,null,null,null,null,null,null,null,null,null,null,null,null,null,null,null,null,null,null,null,null,null,null,null,null,null,null,null,null,null,null,null,null,null,null,null,null,null,null,null,null,null,null,null,null,null,null,null,null,null,null,null,null,null,null,null,null,null,null,null,null,null,null,null,null,"※"]
[null,"通信日付印",null,null,null,null,null,null,null,null,null,null,null,null,null,null,null,null,null,null,null,null,null,null,null,null,null,null,null,null,null,null,null,null,null,null,null,null,null,null,null,null,null,null,null,null,null,null,null,null,null,null,null,null,null,null,null,null,null,"令和　　　年　　　月　　　日",null,null,null,null,null,null,null,null,null,null,null,null,null,null,null,null,null,null,null,null,null,null,null,null,null,null,null,null,null,null,null,null,null,null,null,null,null,null,null,null,null,null,null,null,null,null,null,null,null,null,null,null,null,"確認",null,null,null,null,null,null,null,null,null,null,null,null,null,null,null,null,null,null,null,null,null,null,null,null,null,null,null,null,null,null,null,null,"2020-03-31"]
[]
[]
[]
[]
[]
[null,null,null,null,null,null,null,null,null,null,null,null,null,null,null,null,null,"※",null,null,null,null,null,null,null,null,null,null,null,null,null,null,null,null,null,null,null,null,null,null,null,null,null,null,null,"※",null,null,null,null,null,null,null,null,null,null,null,null,null,null,null,"※",null,null,null,null,null,"確認書類",null,null,null,null,null,null,null,null,null,null,null,null,null,null,null,null,null,null,null,null,null,null,null,null,null,null,null,null,null,null,null,null,null,null,null,null,null,null,null,null,null,null,null,null,null,null,null,null,null,null,null,null,null,null,null,null,null,null,null,null,null,null,null,null,null,null,null,null,null,null,null,null,"※"]
[null,"番号確認",null,null,null,null,null,null,null,null,null,null,null,null,null,null,null,null,null,null,null,null,null,null,null,null,null,null,null,null,"身元確認"]
[]
[null,null,null,null,null,null,null,null,null,null,null,null,null,null,null,null,null,null,null,null,null,null,null,null,null,null,null,null,null,null,null,null,null,null,null,null,null,null,null,null,null,null,null,null,null,null,null,null,null,null,null,null,null,null,"済"]
[null,null,null,null,null,null,null,null,null,null,null,null,null,null,null,null,null,null,null,null,null,null,null,null,null,null,null,null,null,null,null,null,null,null,null,null,null,null,null,null,null,null,null,null,null,null,null,null,null,null,null,null,null,null,null,null,null,null,null,null,null,null,null,null,null,null,null,null,null,"個人番号カード　／　通知カード・運転免許証"]
[]
[]
[null,null,null,null,null,null,null,null,null,null,null,null,null,null,null,null,null,null,null,null,null,null,null,null,null,null,null,null,null,null,null,null,null,null,null,null,null,null,null,null,null,null,null,null,null,null,null,null,null,null,null,null,null,null,"未済"]
[null,null,null,null,null,null,null,null,null,null,null,null,null,null,null,null,null,null,null,null,null,null,null,null,null,null,null,null,null,null,null,null,null,null,null,null,null,null,null,null,null,null,null,null,null,null,null,null,null,null,null,null,null,null,null,null,null,null,null,null,null,null,null,null,null,null,null,null,null,"その他（　　　　　　　　　　　　　　　　　）"]
[]
[]
[]
["（注）※欄には記入しないでください。"]

{"sheet":"市町村用","index":4,"n_rows":283,"n_cols":179,"rows_kept":283,"cut":false,"hidden":false,"merged":[[16,29,22,154],[25,72,28,75],[25,149,28,152],[26,93,32,114],[26,124,32,127],[26,137,32,147],[50,108,54,125],[50,126,54,168],[50,169,54,173],[38,27,42,31],[38,32,42,36],[55,105,58,125],[55,169,58,173],[29,7,32,19],[34,72,39,79],[34,80,39,90],[34,91,39,95],[34,96,39,111],[34,112,39,117],[35,38,57,70],[26,117,29,123],[26,128,29,134],[30,117,32,123],[30,128,32,134],[38,1,42,6],[38,7,42,11],[38,12,42,16],[38,17,42,21],[38,22,42,26],[75,46,88,70],[86,169,89,173],[59,72,64,79],[59,80,64,90],[59,91,64,95],[59,96,64,111],[59,112,64,117],[60,38,119,43],[60,46,72,70],[65,73,69,174],[80,73,85,156],[80,157,85,163],[86,105,89,125],[86,126,89,168],[70,106,73,125],[70,169,73,173],[74,72,79,97],[74,98,77,175],[94,137,103,142],[90,81,93,174],[91,46,103,70],[94,73,103,78],[94,81,103,86],[94,89,103,94],[94,97,103,102],[94,105,103,110],[94,113,103,118],[94,121,103,126],[94,129,103,134],[106,46,119,70],[106,73,119,156],[110,157,115,163],[122,1,126,174],[128,1,132,174],[135,38,146,67],[94,145,103,150],[94,153,103,158],[94,161,103,166],[94,169,103,174],[97,0,105,19],[102,20,105,36],[172,144,175,174],[176,37,178,39],[163,1,174,35],[163,38,174,67],[163,70,168,80],[164,83,171,110],[164,113,171,141],[164,144,171,174],[148,37,150,39],[151,38,160,65],[151,66,153,68],[224,31,227,37],[212,87,215,100],[224,58,227,66],[224,67,227,69],[224,70,227,83],[224,84,227,86],[169,70,174,80],[172,83,175,110],[172,113,175,141],[177,1,204,35],[179,38,204,65],[179,66,181,68],[192,70,204,80],[194,83,204,108],[194,109,196,111],[194,114,204,139],[194,140,196,142],[212,67,215,69],[194,145,204,172],[264,59,268,110],[244,166,248,173],[244,164,248,165],[244,156,248,163],[244,154,248,155],[244,148,248,153],[194,173,196,175],[207,1,233,15],[207,18,210,120],[207,123,210,174],[212,18,215,22],[212,38,215,40],[212,41,215,57],[212,101,215,105],[213,123,222,174],[218,18,222,120],[224,18,227,22],[224,38,227,40],[224,41,227,57],[224,101,227,105],[225,123,233,174],[230,18,233,120],[212,58,215,66],[270,45,273,48],[270,61,273,64],[277,173,281,175],[278,69,281,136],[235,84,239,121],[270,67,273,77],[264,146,268,172],[244,135,248,147],[256,55,259,58],[256,122,259,125],[257,1,261,53],[257,59,261,110],[257,113,261,120],[257,146,261,172],[271,1,280,15],[271,30,280,43],[273,54,275,59],[274,69,277,136],[277,50,278,51],[263,55,266,58],[264,113,268,120],[270,140,273,143],[263,122,266,125],[264,1,268,53],[282,0,285,74],[62,178,96,183],[134,0,161,36],[134,69,161,175],[176,69,190,175],[277,155,281,157],[277,158,281,160],[277,161,281,163],[277,164,281,166],[277,167,281,169],[277,170,281,172],[277,54,279,59],[277,140,281,142],[277,143,281,145],[277,146,281,148],[277,149,281,151],[277,152,281,154],[270,17,273,20],[236,1,240,73],[236,77,240,81],[240,85,246,128],[243,1,247,73],[243,77,247,81],[244,130,247,133],[244,174,248,175],[250,1,254,174],[41,73,49,174],[55,126,58,134],[55,135,58,137],[55,138,58,151],[55,152,58,154],[55,155,58,168],[70,126,73,134],[70,135,73,137],[70,138,73,151],[70,152,73,154],[70,155,73,168],[212,23,215,28],[212,29,215,30],[212,31,215,37],[224,23,227,28],[224,29,227,30],[212,70,215,83],[212,84,215,86],[224,87,227,100],[191,82,193,111],[191,112,193,141],[191,143,193,172]]}
[]
[]
[]
[]
[]
[]
[]
[]
[]
[]
[]
[]
[]
[]
[]
[]
[null,null,null,null,null,null,null,null,null,null,null,null,null,null,null,null,null,null,null,null,null,null,null,null,null,null,null,null,null,"市町村たばこ税の手持品課税納税申告書"]
[]
[]
[]
[]
[]
[]
[]
[]
[null,null,null,null,null,null,null,null,null,null,null,null,null,null,null,null,null,null,null,null,null,null,null,null,null,null,null,null,null,null,null,null,null,null,null,null,null,null,null,null,null,null,null,null,null,null,null,null,null,null,null,null,null,null,null,null,null,null,null,null,null,null,null,null,null,null,null,null,null,null,null,null,"※",null,null,null,null,null,null,null,null,null,null,null,null,null,null,null,null,null,null,null,null,null,null,null,null,null,null,null,null,null,null,null,null,null,null,null,null,null,null,null,null,null,null,null,null,null,null,null,null,null,null,null,null,null,null,null,null,null,null,null,null,null,null,null,null,null,null,null,null,null,null,null,null,null,null,null,null,"※"]
[null,null,null,null,null,null,null,null,null,null,null,null,null,null,null,null,null,null,null,null,null,null,null,null,null,null,null,null,null,null,null,null,null,null,null,null,null,null,null,null,null,null,null,null,null,null,null,null,null,null,null,null,null,null,null,null,null,null,null,null,null,null,null,null,null,null,null,null,null,null,null,null,null,null,null,null,null,null,null,null,null,null,null,null,null,null,null,null,null,null,null,null,null,"申告者の種別",null,null,null,null,null,null,null,null,null,null,null,null,null,null,null,null,null,null,null,null,null,null,null,"小",null,null,null,null,null,null,"・",null,null,null,"卸",null,null,null,null,null,null,null,null,"整理番号"]
[]
[]
[null,null,null,null,null,null,null,"収受印"]
[]
[]
[]
[]
[null,null,null,null,null,null,null,null,null,null,null,null,null,null,null,null,null,null,null,null,null,null,null,null,null,null,null,null,null,null,null,null,null,null,null,null,null,null,null,null,null,null,null,null,null,null,null,null,null,null,null,null,null,null,null,null,null,null,null,null,null,null,null,null,null,null,null,null,null,null,null,null,"（〒",null,null,null,null,null,null,null,{"$f":"IF(入力用!CC35=\"\",\"\",入力用!CC35)","v":""},null,null,null,null,null,null,null,null,null,null,"-",null,null,null,null,{"$f":"IF(入力用!CS35=\"\",\"\",入力用!CS35)","v":""},null,null,null,null,null,null,null,null,null,null,null,null,null,null,null,")"]
[null,null,null,null,null,null,null,null,null,null,null,null,null,null,null,null,null,null,null,null,null,null,null,null,null,null,null,null,null,null,null,null,null,null,null,null,null,null,"営業所又は貯蔵場所\nの所在地及び名称"]
[]
[]
[null,"令和",null,null,null,null,null,{"$f":"IF(入力用!H39=\"\",\"\",入力用!H39)","v":""},null,null,null,null,"年",null,null,null,null,{"$f":"IF(入力用!R39=\"\",\"\",入力用!R39)","v":""},null,null,null,null,"月",null,null,null,null,{"$f":"IF(入力用!AB39=\"\",\"\",入力用!AB39)","v":""},null,null,null,null,"日"]
[]
[]
[null,null,null,null,null,null,null,null,null,null,null,null,null,null,null,null,null,null,null,null,null,null,null,null,null,null,null,null,null,null,null,null,null,null,null,null,null,null,null,null,null,null,null,null,null,null,null,null,null,null,null,null,null,null,null,null,null,null,null,null,null,null,null,null,null,null,null,null,null,null,null,null,null,{"$f":"IF(入力用!BV42=\"\",\"\",入力用!BV42)","v":""}]
[]
[]
[]
[]
[]
[]
[]
[]
[null,null,null,null,null,null,null,null,null,null,null,null,null,null,null,null,null,null,null,null,null,null,null,null,null,null,null,null,null,null,null,null,null,null,null,null,null,null,null,null,null,null,null,null,null,null,null,null,null,null,null,null,null,null,null,null,null,null,null,null,null,null,null,null,null,null,null,null,null,null,null,null,null,null,null,null,null,null,null,null,null,null,null,null,null,null,null,null,null,null,null,null,null,null,null,null,null,null,null,null,null,null,null,null,null,null,null,null,"店舗名（",null,null,null,null,null,null,null,null,null,null,null,null,null,null,null,null,null,{"$f":"IF(入力用!DW51=\"\",\"\",入力用!DW51)","v":""},null,null,null,null,null,null,null,null,null,null,null,null,null,null,null,null,null,null,null,null,null,null,null,null,null,null,null,null,null,null,null,null,null,null,null,null,null,null,null,null,null,null,"）"]
[]
[]
[]
[]
[null,null,null,null,null,null,null,null,null,null,null,null,null,null,null,null,null,null,null,null,null,null,null,null,null,null,null,null,null,null,null,null,null,null,null,null,null,null,null,null,null,null,null,null,null,null,null,null,null,null,null,null,null,null,null,null,null,null,null,null,null,null,null,null,null,null,null,null,null,null,null,null,null,null,null,null,null,null,null,null,null,null,null,null,null,null,null,null,null,null,null,null,null,null,null,null,null,null,null,null,null,null,null,null,null,"（電話番号",null,null,null,null,null,null,null,null,null,null,null,null,null,null,null,null,null,null,null,null,{"$f":"IF(入力用!DW56=\"\",\"\",入力用!DW56)","v":""},null,null,null,null,null,null,null,null,"-",null,null,{"$f":"IF(入力用!EI56=\"\",\"\",入力用!EI56)","v":""},null,null,null,null,null,null,null,null,null,null,null,null,null,"-",null,null,{"$f":"IF(入力用!EZ56=\"\",\"\",入力用!EZ56)","v":""},null,null,null,null,null,null,null,null,null,null,null,null,null,"）"]
[]
[{"$f":"IF(入力用!A58=\"\",\"\",入力用!A58)","v":""}]
[]
[null,null,null,null,null,null,null,null,null,null,null,null,null,null,null,null,null,null,null,null,null,null,null,null,null,null,null,null,null,null,null,null,null,null,null,null,null,null,null,null,null,null,null,null,null,null,null,null,null,null,null,null,null,null,null,null,null,null,null,null,null,null,null,null,null,null,null,null,null,null,null,null,"（〒",null,null,null,null,null,null,null,{"$f":"IF(入力用!CC60=\"\",\"\",入力用!CC60)","v":""},null,null,null,null,null,null,null,null,null,null,"-",null,null,null,null,{"$f":"IF(入力用!CS60=\"\",\"\",入力用!CS60)","v":""},null,null,null,null,null,null,null,null,null,null,null,null,null,null,null,")"]
[null,null,null,null,null,null,null,null,null,null,null,null,null,null,null,null,null,null,null,null,null,null,null,null,null,null,null,null,null,null,null,null,null,null,null,null,null,null,"申　　告　　者",null,null,null,null,null,null,null,"住所"]
[]
[null,null,null,null,null,null,null,null,null,null,null,null,null,null,null,null,null,null,null,null,null,null,null,null,null,null,null,null,null,null,null,null,null,null,null,null,null,null,null,null,null,null,null,null,null,null,null,null,null,null,null,null,null,null,null,null,null,null,null,null,null,null,null,null,null,null,null,null,null,null,null,null,null,null,null,null,null,null,null,null,null,null,null,null,null,null,null,null,null,null,null,null,null,null,null,null,null,null,null,null,null,null,null,null,null,null,null,null,null,null,null,null,null,null,null,null,null,null,null,null,null,null,null,null,null,null,null,null,null,null,null,null,null,null,null,null,null,null,null,null,null,null,null,null,null,null,null,null,null,null,null,null,null,null,null,null,null,null,null,null,null,null,null,null,null,null,null,null,null,null,null,null,null,null,null,null,null,null,"（第二号様式）"]
[]
[]
[null,null,null,null,null,null,null,null,null,null,null,null,null,null,null,null,null,null,null,null,null,null,null,null,null,null,null,null,null,null,null,null,null,null,null,null,null,null,null,null,null,null,null,null,null,null,null,null,null,null,null,null,null,null,null,null,null,null,null,null,null,null,null,null,null,null,null,null,null,null,null,null,null,{"$f":"IF(入力用!BV66=\"\",\"\",入力用!BV66)","v":""}]
[]
[]
[]
[]
[null,null,null,null,null,null,null,null,null,null,null,null,null,null,null,null,null,null,null,null,null,null,null,null,null,null,null,null,null,null,null,null,null,null,null,null,null,null,null,null,null,null,null,null,null,null,null,null,null,null,null,null,null,null,null,null,null,null,null,null,null,null,null,null,null,null,null,null,null,null,null,null,null,null,null,null,null,null,null,null,null,null,null,null,null,null,null,null,null,null,null,null,null,null,null,null,null,null,null,null,null,null,null,null,null,null,"（電話番号",null,null,null,null,null,null,null,null,null,null,null,null,null,null,null,null,null,null,null,{"$f":"IF(入力用!DW71=\"\",\"\",入力用!DW71)","v":""},null,null,null,null,null,null,null,null,"-",null,null,{"$f":"IF(入力用!EI71=\"\",\"\",入力用!EI71)","v":""},null,null,null,null,null,null,null,null,null,null,null,null,null,"-",null,null,{"$f":"IF(入力用!EZ71=\"\",\"\",入力用!EZ71)","v":""},null,null,null,null,null,null,null,null,null,null,null,null,null,"）"]
[]
[]
[]
[null,null,null,null,null,null,null,null,null,null,null,null,null,null,null,null,null,null,null,null,null,null,null,null,null,null,null,null,null,null,null,null,null,null,null,null,null,null,null,null,null,null,null,null,null,null,null,null,null,null,null,null,null,null,null,null,null,null,null,null,null,null,null,null,null,null,null,null,null,null,null,null,"（フリガナ）",null,null,null,null,null,null,null,null,null,null,null,null,null,null,null,null,null,null,null,null,null,null,null,null,null,{"$f":"IF(入力用!CU75=\"\",\"\",入力用!CU75)","v":""}]
[null,null,null,null,null,null,null,null,null,null,null,null,null,null,null,null,null,null,null,null,null,null,null,null,null,null,null,null,null,null,null,null,null,null,null,null,null,null,null,null,null,null,null,null,null,null,"氏名又は名称\n及び代表者氏名"]
[]
[{"$f":"IF(入力用!A78=\"\",\"\",入力用!A78)","v":""}]
[]
[]
[null,null,null,null,null,null,null,null,null,null,null,null,null,null,null,null,null,null,null,null,null,null,null,null,null,null,null,null,null,null,null,null,null,null,null,null,null,null,null,null,null,null,null,null,null,null,null,null,null,null,null,null,null,null,null,null,null,null,null,null,null,null,null,null,null,null,null,null,null,null,null,null,null,{"$f":"IF(入力用!BV81=\"\",\"\",入力用!BV81)","v":""},null,null,null,null,null,null,null,null,null,null,null,null,null,null,null,null,null,null,null,null,null,null,null,null,null,null,null,null,null,null,null,null,null,null,null,null,null,null,null,null,null,null,null,null,null,null,null,null,null,null,null,null,null,null,null,null,null,null,null,null,null,null,null,null,null,null,null,null,null,null,null,null,null,null,null,null,null,null,null,null,null,null,null,"㊞"]
[]
[]
[]
[]
[]
[]
[]
[]
[]
[null,null,null,null,null,null,null,null,null,null,null,null,null,null,null,null,null,null,null,null,null,null,null,null,null,null,null,null,null,null,null,null,null,null,null,null,null,null,null,null,null,null,null,null,null,null,null,null,null,null,null,null,null,null,null,null,null,null,null,null,null,null,null,null,null,null,null,null,null,null,null,null,null,null,null,null,null,null,null,null,null," ↓個人番号の記載に当たっては、左端を空欄とし、ここから記載してください。"]
[null,null,null,null,null,null,null,null,null,null,null,null,null,null,null,null,null,null,null,null,null,null,null,null,null,null,null,null,null,null,null,null,null,null,null,null,null,null,null,null,null,null,null,null,null,null,"個人番号又は\n法人番号"]
[]
[]
[null,null,null,null,null,null,null,null,null,null,null,null,null,null,null,null,null,null,null,null,null,null,null,null,null,null,null,null,null,null,null,null,null,null,null,null,null,null,null,null,null,null,null,null,null,null,null,null,null,null,null,null,null,null,null,null,null,null,null,null,null,null,null,null,null,null,null,null,null,null,null,null,null,{"$f":"IF(入力用!BV95=\"\",\"\",入力用!BV95)","v":""},null,null,null,null,null,null,null,{"$f":"IF(入力用!CD95=\"\",\"\",入力用!CD95)","v":""},null,null,null,null,null,null,null,{"$f":"IF(入力用!CL95=\"\",\"\",入力用!CL95)","v":""},null,null,null,null,null,null,null,{"$f":"IF(入力用!CT95=\"\",\"\",入力用!CT95)","v":""},null,null,null,null,null,null,null,{"$f":"IF(入力用!DB95=\"\",\"\",入力用!DB95)","v":""},null,null,null,null,null,null,null,{"$f":"IF(入力用!DJ95=\"\",\"\",入力用!DJ95)","v":""},null,null,null,null,null,null,null,{"$f":"IF(入力用!DR95=\"\",\"\",入力用!DR95)","v":""},null,null,null,null,null,null,null,{"$f":"IF(入力用!DZ95=\"\",\"\",入力用!DZ95)","v":""},null,null,null,null,null,null,null,{"$f":"IF(入力用!EH95=\"\",\"\",入力用!EH95)","v":""},null,null,null,null,null,null,null,{"$f":"IF(入力用!EP95=\"\",\"\",入力用!EP95)","v":""},null,null,null,null,null,null,null,{"$f":"IF(入力用!EX95=\"\",\"\",入力用!EX95)","v":""},null,null,null,null,null,null,null,{"$f":"IF(入力用!FF95=\"\",\"\",入力用!FF95)","v":""},null,null,null,null,null,null,null,{"$f":"IF(入力用!FN95=\"\",\"\",入力用!FN95)","v":""}]
[]
[]
[{"$f":"IF(入力用!A98=\"\",\"\",入力用!A98)","v":""}]
[]
[]
[]
[]
[null,null,null,null,null,null,null,null,null,null,null,null,null,null,null,null,null,null,null,null,"市町村長殿"]
[]
[]
[]
[null,null,null,null,null,null,null,null,null,null,null,null,null,null,null,null,null,null,null,null,null,null,null,null,null,null,null,null,null,null,null,null,null,null,null,null,null,null,null,null,null,null,null,null,null,null,"同上代理人",null,null,null,null,null,null,null,null,null,null,null,null,null,null,null,null,null,null,null,null,null,null,null,null,null,null,{"$f":"IF(入力用!BV107=\"\",\"\",入力用!BV107)","v":""}]
[]
[]
[]
[null,null,null,null,null,null,null,null,null,null,null,null,null,null,null,null,null,null,null,null,null,null,null,null,null,null,null,null,null,null,null,null,null,null,null,null,null,null,null,null,null,null,null,null,null,null,null,null,null,null,null,null,null,null,null,null,null,null,null,null,null,null,null,null,null,null,null,null,null,null,null,null,null,null,null,null,null,null,null,null,null,null,null,null,null,null,null,null,null,null,null,null,null,null,null,null,null,null,null,null,null,null,null,null,null,null,null,null,null,null,null,null,null,null,null,null,null,null,null,null,null,null,null,null,null,null,null,null,null,null,null,null,null,null,null,null,null,null,null,null,null,null,null,null,null,null,null,null,null,null,null,null,null,null,null,null,null,"㊞"]
[]
[]
[]
[]
[]
[]
[]
[]
[]
[]
[]
[null,"下記のとおり、令和元年10月１日現在における、紙巻たばこ三級品に係る市町村たばこ税の手持品課税"]
[]
[]
[]
[]
[]
[null,"納税申告書を提出します。"]
[]
[]
[]
[]
[]
[]
[null,null,null,null,null,null,null,null,null,null,null,null,null,null,null,null,null,null,null,null,null,null,null,null,null,null,null,null,null,null,null,null,null,null,null,null,null,null,"所持する紙巻\nたばこ三級品の数量"]
[]
[]
[]
[]
[]
[]
[]
[]
[]
[]
[]
[]
[null,null,null,null,null,null,null,null,null,null,null,null,null,null,null,null,null,null,null,null,null,null,null,null,null,null,null,null,null,null,null,null,null,null,null,null,null,"①"]
[]
[]
[null,null,null,null,null,null,null,null,null,null,null,null,null,null,null,null,null,null,null,null,null,null,null,null,null,null,null,null,null,null,null,null,null,null,null,null,null,null,{"$f":"IF(入力用!AM152=\"\",\"\",入力用!AM152)","v":""},null,null,null,null,null,null,null,null,null,null,null,null,null,null,null,null,null,null,null,null,null,null,null,null,null,null,null,"本"]
[]
[]
[]
[]
[]
[]
[]
[]
[]
[]
[]
[null,"区　　　分",null,null,null,null,null,null,null,null,null,null,null,null,null,null,null,null,null,null,null,null,null,null,null,null,null,null,null,null,null,null,null,null,null,null,null,null,"課税標準となる紙巻\nたばこ三級品の本数",null,null,null,null,null,null,null,null,null,null,null,null,null,null,null,null,null,null,null,null,null,null,null,null,null,null,null,null,null,null,null,"１本当た"]
[null,null,null,null,null,null,null,null,null,null,null,null,null,null,null,null,null,null,null,null,null,null,null,null,null,null,null,null,null,null,null,null,null,null,null,null,null,null,null,null,null,null,null,null,null,null,null,null,null,null,null,null,null,null,null,null,null,null,null,null,null,null,null,null,null,null,null,null,null,null,null,null,null,null,null,null,null,null,null,null,null,null,null,"税　　　額",null,null,null,null,null,null,null,null,null,null,null,null,null,null,null,null,null,null,null,null,null,null,null,null,null,null,null,null,null,"修正申告の場合の\n修正申告前の確定額",null,null,null,null,null,null,null,null,null,null,null,null,null,null,null,null,null,null,null,null,null,null,null,null,null,null,null,null,null,null,"納付すべき税額"]
[]
[]
[]
[]
[null,null,null,null,null,null,null,null,null,null,null,null,null,null,null,null,null,null,null,null,null,null,null,null,null,null,null,null,null,null,null,null,null,null,null,null,null,null,null,null,null,null,null,null,null,null,null,null,null,null,null,null,null,null,null,null,null,null,null,null,null,null,null,null,null,null,null,null,null,null,"りの税率"]
[]
[]
[null,null,null,null,null,null,null,null,null,null,null,null,null,null,null,null,null,null,null,null,null,null,null,null,null,null,null,null,null,null,null,null,null,null,null,null,null,null,null,null,null,null,null,null,null,null,null,null,null,null,null,null,null,null,null,null,null,null,null,null,null,null,null,null,null,null,null,null,null,null,null,null,null,null,null,null,null,null,null,null,null,null,null,"(1円未満切捨て)",null,null,null,null,null,null,null,null,null,null,null,null,null,null,null,null,null,null,null,null,null,null,null,null,null,null,null,null,null,"(1円単位で記入)",null,null,null,null,null,null,null,null,null,null,null,null,null,null,null,null,null,null,null,null,null,null,null,null,null,null,null,null,null,null,"(1円単位で記入)"]
[]
[]
[]
[null,null,null,null,null,null,null,null,null,null,null,null,null,null,null,null,null,null,null,null,null,null,null,null,null,null,null,null,null,null,null,null,null,null,null,null,null,"⑤"]
[null,"市町村税"]
[]
[null,null,null,null,null,null,null,null,null,null,null,null,null,null,null,null,null,null,null,null,null,null,null,null,null,null,null,null,null,null,null,null,null,null,null,null,null,null,{"$f":"IF(入力用!AM180=\"\",\"\",入力用!AM180)","v":""},null,null,null,null,null,null,null,null,null,null,null,null,null,null,null,null,null,null,null,null,null,null,null,null,null,null,null,"本"]
[]
[]
[]
[]
[]
[]
[]
[]
[]
[]
[]
[null,null,null,null,null,null,null,null,null,null,null,null,null,null,null,null,null,null,null,null,null,null,null,null,null,null,null,null,null,null,null,null,null,null,null,null,null,null,null,null,null,null,null,null,null,null,null,null,null,null,null,null,null,null,null,null,null,null,null,null,null,null,null,null,null,null,null,null,null,null,null,null,null,null,null,null,null,null,null,null,null,null,{"$f":"\"⑨（⑤×\"&BS193 &\"）\"","v":"⑨（⑤×1.692）"},null,null,null,null,null,null,null,null,null,null,null,null,null,null,null,null,null,null,null,null,null,null,null,null,null,null,null,null,null,"⑩",null,null,null,null,null,null,null,null,null,null,null,null,null,null,null,null,null,null,null,null,null,null,null,null,null,null,null,null,null,null,"⑪（⑨又は⑨－⑩）"]
[null,null,null,null,null,null,null,null,null,null,null,null,null,null,null,null,null,null,null,null,null,null,null,null,null,null,null,null,null,null,null,null,null,null,null,null,null,null,null,null,null,null,null,null,null,null,null,null,null,null,null,null,null,null,null,null,null,null,null,null,null,null,null,null,null,null,null,null,null,null,1.6919999999999999]
[]
[null,null,null,null,null,null,null,null,null,null,null,null,null,null,null,null,null,null,null,null,null,null,null,null,null,null,null,null,null,null,null,null,null,null,null,null,null,null,null,null,null,null,null,null,null,null,null,null,null,null,null,null,null,null,null,null,null,null,null,null,null,null,null,null,null,null,null,null,null,null,null,null,null,null,null,null,null,null,null,null,null,null,null,{"$f":"IF(AM180=\"\",\"\",ROUNDDOWN(AM180*BS193,0))","v":""},null,null,null,null,null,null,null,null,null,null,null,null,null,null,null,null,null,null,null,null,null,null,null,null,null,"円",null,null,null,null,{"$f":"IF(入力用!DK195=\"\",\"\",入力用!DK195)","v":0},null,null,null,null,null,null,null,null,null,null,null,null,null,null,null,null,null,null,null,null,null,null,null,null,null,"円",null,null,null,null,{"$f":"IF(AM180=\"\",\"\",IF(DK195=\"\",CF195,CF195-DK195))","v":""},null,null,null,null,null,null,null,null,null,null,null,null,null,null,null,null,null,null,null,null,null,null,null,null,null,null,null,"円"]
[]
[]
[]
[]
[]
[]
[]
[]
[]
[]
[]
[]
[null,"出張販売\n先、自動\n販売機等\nの所在地\n及び名称",null,null,null,null,null,null,null,null,null,null,null,null,null,null,null,null,"所　　在　　地",null,null,null,null,null,null,null,null,null,null,null,null,null,null,null,null,null,null,null,null,null,null,null,null,null,null,null,null,null,null,null,null,null,null,null,null,null,null,null,null,null,null,null,null,null,null,null,null,null,null,null,null,null,null,null,null,null,null,null,null,null,null,null,null,null,null,null,null,null,null,null,null,null,null,null,null,null,null,null,null,null,null,null,null,null,null,null,null,null,null,null,null,null,null,null,null,null,null,null,null,null,null,null,null,"名　　称"]
[]
[]
[]
[]
[null,null,null,null,null,null,null,null,null,null,null,null,null,null,null,null,null,null,"（〒",null,null,null,null,{"$f":"IF(入力用!X213=\"\",\"\",入力用!X213)","v":""},null,null,null,null,null,"-",null,{"$f":"IF(入力用!AF213=\"\",\"\",入力用!AF213)","v":""},null,null,null,null,null,null,"）",null,null,"（電話番号",null,null,null,null,null,null,null,null,null,null,null,null,null,null,null,null,{"$f":"IF(入力用!BG213=\"\",\"\",入力用!BG213)","v":""},null,null,null,null,null,null,null,null,"-",null,null,{"$f":"IF(入力用!BS213=\"\",\"\",入力用!BS213)","v":""},null,null,null,null,null,null,null,null,null,null,null,null,null,"-",null,null,{"$f":"IF(入力用!CJ213=\"\",\"\",入力用!CJ213)","v":""},null,null,null,null,null,null,null,null,null,null,null,null,null,"）"]
[null,null,null,null,null,null,null,null,null,null,null,null,null,null,null,null,null,null,null,null,null,null,null,null,null,null,null,null,null,null,null,null,null,null,null,null,null,null,null,null,null,null,null,null,null,null,null,null,null,null,null,null,null,null,null,null,null,null,null,null,null,null,null,null,null,null,null,null,null,null,null,null,null,null,null,null,null,null,null,null,null,null,null,null,null,null,null,null,null,null,null,null,null,null,null,null,null,null,null,null,null,null,null,null,null,null,null,null,null,null,null,null,null,null,null,null,null,null,null,null,null,null,null,{"$f":"IF(入力用!DT214=\"\",\"\",入力用!DT214)","v":""}]
[]
[]
[]
[]
[null,null,null,null,null,null,null,null,null,null,null,null,null,null,null,null,null,null,{"$f":"IF(入力用!S219=\"\",\"\",入力用!S219)","v":""}]
[]
[]
[]
[]
[]
[null,null,null,null,null,null,null,null,null,null,null,null,null,null,null,null,null,null,"（〒",null,null,null,null,{"$f":"IF(入力用!X225=\"\",\"\",入力用!X225)","v":""},null,null,null,null,null,"-",null,{"$f":"IF(入力用!AF225=\"\",\"\",入力用!AF225)","v":""},null,null,null,null,null,null,"）",null,null,"（電話番号",null,null,null,null,null,null,null,null,null,null,null,null,null,null,null,null,{"$f":"IF(入力用!BG225=\"\",\"\",入力用!BG225)","v":""},null,null,null,null,null,null,null,null,"-",null,null,{"$f":"IF(入力用!BS225=\"\",\"\",入力用!BS225)","v":""},null,null,null,null,null,null,null,null,null,null,null,null,null,"-",null,null,{"$f":"IF(入力用!CJ225=\"\",\"\",入力用!CJ225)","v":""},null,null,null,null,null,null,null,null,null,null,null,null,null,"）"]
[null,null,null,null,null,null,null,null,null,null,null,null,null,null,null,null,null,null,null,null,null,null,null,null,null,null,null,null,null,null,null,null,null,null,null,null,null,null,null,null,null,null,null,null,null,null,null,null,null,null,null,null,null,null,null,null,null,null,null,null,null,null,null,null,null,null,null,null,null,null,null,null,null,null,null,null,null,null,null,null,null,null,null,null,null,null,null,null,null,null,null,null,null,null,null,null,null,null,null,null,null,null,null,null,null,null,null,null,null,null,null,null,null,null,null,null,null,null,null,null,null,null,null,{"$f":"IF(入力用!DT226=\"\",\"\",入力用!DT226)","v":""}]
[]
[]
[]
[]
[null,null,null,null,null,null,null,null,null,null,null,null,null,null,null,null,null,null,{"$f":"IF(入力用!S231=\"\",\"\",入力用!S231)","v":""}]
[]
[]
[]
[]
[null,null,null,null,null,null,null,null,null,null,null,null,null,null,null,null,null,null,null,null,null,null,null,null,null,null,null,null,null,null,null,null,null,null,null,null,null,null,null,null,null,null,null,null,null,null,null,null,null,null,null,null,null,null,null,null,null,null,null,null,null,null,null,null,null,null,null,null,null,null,null,null,null,null,null,null,null,null,null,null,null,null,null,null,"作成税理士署名・押印"]
[null,"税理士法第30条の書面提出"]
[]
[]
[]
[]
[]
[]
[null,"税理士法第33条の2の書面提出"]
[null,null,null,null,null,null,null,null,null,null,null,null,null,null,null,null,null,null,null,null,null,null,null,null,null,null,null,null,null,null,null,null,null,null,null,null,null,null,null,null,null,null,null,null,null,null,null,null,null,null,null,null,null,null,null,null,null,null,null,null,null,null,null,null,null,null,null,null,null,null,null,null,null,null,null,null,null,null,null,null,null,null,null,null,null,null,null,null,null,null,null,null,null,null,null,null,null,null,null,null,null,null,null,null,null,null,null,null,null,null,null,null,null,null,null,null,null,null,null,null,null,null,null,null,null,null,null,null,null,null,"㊞",null,null,null,null,"（電話番号",null,null,null,null,null,null,null,null,null,null,null,null,{"$f":"IF(入力用!ES245=\"\",\"\",入力用!ES245)","v":""},null,null,null,null,null,"-",null,{"$f":"IF(入力用!FA245=\"\",\"\",入力用!FA245)","v":""},null,null,null,null,null,null,null,"-",null,{"$f":"IF(入力用!FK245=\"\",\"\",入力用!FK245)","v":""},null,null,null,null,null,null,null,"）"]
[]
[]
[]
[]
[]
[null,"市　町　村　整　理　欄"]
[]
[]
[]
[]
[]
[null,null,null,null,null,null,null,null,null,null,null,null,null,null,null,null,null,null,null,null,null,null,null,null,null,null,null,null,null,null,null,null,null,null,null,null,null,null,null,null,null,null,null,null,null,null,null,null,null,null,null,null,null,null,null,"※",null,null,null,null,null,null,null,null,null,null,null,null,null,null,null,null,null,null,null,null,null,null,null,null,null,null,null,null,null,null,null,null,null,null,null,null,null,null,null,null,null,null,null,null,null,null,null,null,null,null,null,null,null,null,null,null,null,null,null,null,null,null,null,null,null,null,"※"]
[null,"修正申告の場合の当初申告年月日",null,null,null,null,null,null,null,null,null,null,null,null,null,null,null,null,null,null,null,null,null,null,null,null,null,null,null,null,null,null,null,null,null,null,null,null,null,null,null,null,null,null,null,null,null,null,null,null,null,null,null,null,null,null,null,null,null,"令和　　　年　　　月　　　日",null,null,null,null,null,null,null,null,null,null,null,null,null,null,null,null,null,null,null,null,null,null,null,null,null,null,null,null,null,null,null,null,null,null,null,null,null,null,null,null,null,null,null,null,null,null,null,null,null,null,null,null,null,"確認",null,null,null,null,null,null,null,null,null,null,null,null,null,null,null,null,null,null,null,null,null,null,null,null,null,null,null,null,null,null,null,null,"納期限"]
[]
[]
[]
[]
[]
[null,null,null,null,null,null,null,null,null,null,null,null,null,null,null,null,null,null,null,null,null,null,null,null,null,null,null,null,null,null,null,null,null,null,null,null,null,null,null,null,null,null,null,null,null,null,null,null,null,null,null,null,null,null,null,"※",null,null,null,null,null,null,null,null,null,null,null,null,null,null,null,null,null,null,null,null,null,null,null,null,null,null,null,null,null,null,null,null,null,null,null,null,null,null,null,null,null,null,null,null,null,null,null,null,null,null,null,null,null,null,null,null,null,null,null,null,null,null,null,null,null,null,"※"]
[null,"通信日付印",null,null,null,null,null,null,null,null,null,null,null,null,null,null,null,null,null,null,null,null,null,null,null,null,null,null,null,null,null,null,null,null,null,null,null,null,null,null,null,null,null,null,null,null,null,null,null,null,null,null,null,null,null,null,null,null,null,"令和　　　年　　　月　　　日",null,null,null,null,null,null,null,null,null,null,null,null,null,null,null,null,null,null,null,null,null,null,null,null,null,null,null,null,null,null,null,null,null,null,null,null,null,null,null,null,null,null,null,null,null,null,null,null,null,null,null,null,null,"確認",null,null,null,null,null,null,null,null,null,null,null,null,null,null,null,null,null,null,null,null,null,null,null,null,null,null,null,null,null,null,null,null,"2020-03-31"]
[]
[]
[]
[]
[]
[null,null,null,null,null,null,null,null,null,null,null,null,null,null,null,null,null,"※",null,null,null,null,null,null,null,null,null,null,null,null,null,null,null,null,null,null,null,null,null,null,null,null,null,null,null,"※",null,null,null,null,null,null,null,null,null,null,null,null,null,null,null,"※",null,null,null,null,null,"確認書類",null,null,null,null,null,null,null,null,null,null,null,null,null,null,null,null,null,null,null,null,null,null,null,null,null,null,null,null,null,null,null,null,null,null,null,null,null,null,null,null,null,null,null,null,null,null,null,null,null,null,null,null,null,null,null,null,null,null,null,null,null,null,null,null,null,null,null,null,null,null,null,null,"※"]
[null,"番号確認",null,null,null,null,null,null,null,null,null,null,null,null,null,null,null,null,null,null,null,null,null,null,null,null,null,null,null,null,"身元確認"]
[]
[null,null,null,null,null,null,null,null,null,null,null,null,null,null,null,null,null,null,null,null,null,null,null,null,null,null,null,null,null,null,null,null,null,null,null,null,null,null,null,null,null,null,null,null,null,null,null,null,null,null,null,null,null,null,"済"]
[null,null,null,null,null,null,null,null,null,null,null,null,null,null,null,null,null,null,null,null,null,null,null,null,null,null,null,null,null,null,null,null,null,null,null,null,null,null,null,null,null,null,null,null,null,null,null,null,null,null,null,null,null,null,null,null,null,null,null,null,null,null,null,null,null,null,null,null,null,"個人番号カード　／　通知カード・運転免許証"]
[]
[]
[null,null,null,null,null,null,null,null,null,null,null,null,null,null,null,null,null,null,null,null,null,null,null,null,null,null,null,null,null,null,null,null,null,null,null,null,null,null,null,null,null,null,null,null,null,null,null,null,null,null,null,null,null,null,"未済"]
[null,null,null,null,null,null,null,null,null,null,null,null,null,null,null,null,null,null,null,null,null,null,null,null,null,null,null,null,null,null,null,null,null,null,null,null,null,null,null,null,null,null,null,null,null,null,null,null,null,null,null,null,null,null,null,null,null,null,null,null,null,null,null,null,null,null,null,null,null,"その他（　　　　　　　　　　　　　　　　　）"]
[]
[]
[]
["（注）※欄には記入しないでください。"]